Workbook

Sheet 1. Info
AB1: Algoma Power Inc.
AB2: Atikokan Hydro Inc.
AB3: Attawapiskat Power Corporation
AB4: Bluewater Power Distribution Corporation
AB5: Brant County Power Inc.
AB6: Brantford Power Inc.
AB7: Burlington Hydro Inc.
AB8: Cambridge and North Dumfries Hydro Inc.
AB9: Canadian Niagara Power Inc.
AB10: Centre Wellington Hydro Ltd.
AB11: Chapleau Public Utilities Corporation
AB12: COLLUS PowerStream Corp.
A13: Drop-down lists are shaded blue; Input cells are shaded green. | AB13: Cooperative Hydro Embrun Inc.
AB14: E.L.K. Energy Inc.
C15: Utility Name | D15: Grimsby Power Inc. | AB15: Enersource Hydro Mississauga Inc.
AB16: Entegrus Powerlines Inc.
C17: Service Territory | D17: Town of Grimsby | AB17: EnWin Utilities Ltd.
AB18: Erie Thames Powerlines Corporation
C19: Assigned EB Number | D19: EB-2015-0072 | AB19: Espanola Regional Hydro Distribution Corporation
AB20: Essex Powerlines Corporation
C21: Name and Title | D21: Amy La Selva Finance & Regulatory Analyst | AB21: Festival Hydro Inc.
AB22: Fort Albany Power Corporation
C23: Phone Number | D23: 905-945-5437 | AB23: Fort Frances Power Corporation
AB24: Greater Sudbury Hydro Inc.
C25: Email Address | D25: amyl@grimsbypower.com | AB25: Grimsby Power Inc.
AB26: Guelph Hydro Electric Systems Inc.
C27: Date | D27: 2016-05-05 | AB27: Haldimand County Hydro Inc.
AB28: Halton Hills Hydro Inc.
C29: Last COS Re-based Year | D29: 2012 | AB29: Hearst Power Distribution Company Limited
AB30: Horizon Utilities Corporation
AB31: Hydro 2000 Inc.
AB32: Hydro Hawkesbury Inc.
AB33: Hydro One Brampton Networks Inc.
AB34: Hydro One Networks Inc.
AB35: Hydro One Remote Communities Inc.
AB36: Hydro Ottawa Limited
AB37: Innpower Corporation
AB38: Kashechewan Power Corporation
AB39: Kenora Hydro Electric Corporation Ltd.
AB40: Kingston Hydro Corporation
AB41: Kitchener-Wilmot Hydro Inc.
AB42: Lakefront Utilities Inc.
AB43: Lakeland Power Distribution Ltd.
AB44: London Hydro Inc.
AB45: Midland Power Utility Corporation
AB46: Milton Hydro Distribution Inc.
AB47: Newmarket-Tay Power Distribution Ltd.
AB48: Niagara Peninsula Energy Inc.
AB49: Niagara-on-the-Lake Hydro Inc.
AB50: Norfolk Power Distribution Inc.
AB51: North Bay Hydro Distribution Limited
AB52: Northern Ontario Wires Inc.
AB53: Oakville Hydro Electricity Distribution Inc.
AB54: Orangeville Hydro Limited
AB55: Orillia Power Distribution Corporation
AB56: Oshawa PUC Networks Inc.
AB57: Ottawa River Power Corporation
AB58: Peterborough Distribution Incorporated
AB59: PowerStream Inc.
AB60: PUC Distribution Inc.
AB61: Renfrew Hydro Inc.
AB62: Rideau St. Lawrence Distribution Inc.
AB63: Sioux Lookout Hydro Inc.
AB64: St. Thomas Energy Inc.
AB65: Thunder Bay Hydro Electricity Distribution Inc.
AB66: Tillsonburg Hydro Inc.
AB67: Toronto Hydro-Electric System Limited
AB68: Veridian Connections Inc.
AB69: Wasaga Distribution Inc.
AB70: Waterloo North Hydro Inc.
AB71: Welland Hydro-Electric System Corp.
AB72: Wellington North Power Inc.
AB73: West Coast Huron Energy Inc.
AB74: Westario Power Inc.
AB75: Whitby Hydro Electric Corporation
AB76: Woodstock Hydro Services Inc.

Sheet 2. Table of Contents
D20: 1. Info | I20: 6. Historical Wholesale
D22: 2. Table of Contents | I22: 7. Current Wholesale
D24: 3. Rate Classes | I24: 8. Forecast Wholesale
D26: 4. RRR Data | I26: 9. RTSR Rates to Forecast
D28: 5. UTRs and Sub-Transmission

Sheet 3. Rate Classes
C13: 1. Select the appropriate rate classes that appear on your most recent Board-Approved Tariff of Rates and Charges. 2. Enter the RTS Network and Connection Rate as it appears on the Tariff of Rates and Charges
C15: Rate Class | E15: Unit | G15: RTSR-Network | I15: RTSR-Connection
C17: Residential | E17: kWh | G17: 0.0076 | I17: 0.0057 | L17: =IF(OR(ISBLANK(C17), ISERROR(FIND("Choose", C17))=FALSE), 0, 1) -> 1 | M17: ="C" & ROW(C17) -> C17 | N17: =IF(OR(C17="General Service Intermediate Rate Class 1,000 To 4,999 kW (formerly General Service > 50 kW Customers)", C17="General Service Intermediate Rate Class 1,000 To 4,999 kW (formerly Large Use Customers)"), "x", "") ->  | W17: Choose Rate Class
C18: General Service Less Than 50 kW | E18: kWh | G18: 0.0071 | I18: 0.005 | L18: 1 | M18: C18 | N18: =IF(OR(C18="General Service Intermediate Rate Class 1,000 To 4,999 kW (formerly General Service > 50 kW Customers)", C18="General Service Intermediate Rate Class 1,000 To 4,999 kW (formerly Large Use Customers)"), "x", "") ->  | W18: Residential
C19: General Service 50 to 4,999 kW | E19: kW | G19: 2.8217 | I19: 2.0135 | L19: 1 | M19: C19 | W19: Residential Regular
C20: General Service 50 to 4,999 kW – Interval Metered | E20: kW | G20: 2.8578 | I20: 2.1223 | L20: 1 | M20: C20 | W20: Residential Urban
C21: Unmetered Scattered Load | E21: kWh | G21: 0.0071 | I21: 0.005 | L21: 1 | M21: C21 | W21: Residential Urban Year-Round
C22: Street Lighting | E22: kW | G22: 2.1281 | I22: 1.5565 | L22: 1 | M22: C22 | W22: Residential Suburban
C23: Embedded Distributor | E23: kW | G23: 3.78 | I23: 0.86 | L23: 1 | M23: C23 | W23: Residential Suburban Seasonal
C24: Choose Rate Class | L24: 0 | M24: C24 | W24: Residential Suburban Year Round
C25: Choose Rate Class | L25: 0 | M25: C25 | W25: Residential - Time of Use
C26: Choose Rate Class | L26: 0 | M26: C26 | W26: Residential - Hensall
C27: Choose Rate Class | L27: 0 | M27: C27 | W27: Residential – High Density [R1]
C28: Choose Rate Class | L28: 0 | M28: C28 | W28: Residential – Normal Density [R2]
C29: Choose Rate Class | L29: 0 | M29: C29 | W29: Seasonal Residential – High Density [R3]
C30: Choose Rate Class | L30: 0 | M30: C30 | W30: Seasonal Residential – Normal Density [R4]
C31: Choose Rate Class | L31: 0 | M31: C31 | W31: Residential – Urban [UR]
C32: Choose Rate Class | L32: 0 | M32: C32 | W32: General Service Less Than 50 kW
C33: Choose Rate Class | L33: 0 | M33: C33 | W33: General Service Less Than 50 kW – Single Phase energy-billed [G1]
C34: Choose Rate Class | L34: 0 | M34: C34 | W34: General Service Less Than 50 kW – Three Phase energy-billed [G3]
C35: Choose Rate Class | L35: 0 | M35: C35 | W35: General Service Less Than 50 kW – Transmission Class energy-billed [T]
C36: Choose Rate Class | L36: 0 | M36: C36 | W36: General Service Less Than 50 kW – Urban energy-billed [UG]
C37: Choose Rate Class | L37: 0 | M37: C37 | W37: Westport Sewage Treatment Plant
C38: Choose Rate Class | L38: 0 | M38: C38 | W38: Small Commercial and USL - per meter
N39: =COUNTIF(N17:N38, "x") -> 0 | W39: Small Commercial and USL - per connection
W40: Farms – Single Phase energy-billed [F1]
W41: General Service 50 to 499 kW
W42: General Service 50 to 699 kW
W43: General Service 50 to 999 kW
W44: General Service 50 to 999 kW - Interval Metered
W45: General Service 50 to 1,000 kW
W46: General Service 50 to 1,000 kW - Interval Meters
W47: General Service 50 to 1,000 kW - Non Interval Meters
W48: General Service 50 to 1,499 kW
W49: General Service 50 to 1,499 kW - Interval Metered
W50: General Service 50 to 2,499 kW
W51: General Service 50 to 2,999 kW
W52: General Service 50 to 2,999 kW - Time of Use
W53: General Service 50 to 4,999 kW
W54: General Service 50 to 4,999 kW – Interval Metered
W55: General Service 50 to 4,999 kW - Time of Use
W56: General Service 50 to 4,999 kW (CoGeneration)
W57: General Service 50 to 4,999 kW (formerly Time of Use)
W58: General Service 500 to 4,999 kW
W59: General Service 700 to 4,999 kW
W60: General Service 1,000 to 2,999 kW
W61: General Service 1,000 to 4,999 kW
W62: General Service 1,000 to 4,999 kW - Interval Meters
W63: General Service 1,000 To 4,999 kW (co-generation)
W64: General Service Greater Than 1,000 kW
W65: General Service Intermediate Rate Class 1,000 To 4,999 kW (formerly Large Use Customers)
W66: General Service Intermediate Rate Class 1,000 To 4,999 kW (formerly General Service > 50 kW Customers)
W67: General Service 1,500 to 4,999 kW
W68: General Service Equal To Or Greater Than 1,500 kW
W69: General Service Equal To Or Greater Than 1,500 kW - Interval Metered
W70: General Service Intermediate 1,000 To 4,999 kW
W71: General Service 2,500 to 4,999 kW
W72: General Service 3,000 to 4,999 kW
W73: General Service 3,000 to 4,999 kW - Interval Metered
W74: General Service 3,000 to 4,999 kW - Intermediate Use
W75: General Service 3,000 to 4,999 kW - Time of Use
W76: Intermediate With Self Generation
W77: General Service - Commercial
W78: General Service - Institutional
W79: Farms – Three Phase energy-billed [F3]
W80: Large Use
W81: Large Use - Regular
W82: Large Use > 5000 kW
W83: Large Use - 3TS
W84: Large Use - Ford Annex
W85: Unmetered Scattered Load
W86: Sentinel Lighting
W87: Street Lighting
W88: Embedded Distributor
W89: Low Voltage Wheeling Charge Rate
W90: Stand-By
W91: Standby Power
W92: Standby Power – INTERIM APPROVAL
W93: Standby Power - APPROVED ON AN INTERIM BASIS
W94: Standby - General Service 50 - 1,000 kW
W95: Standby Power General Service 50 to 1,499 kW
W96: Standby - General Service 1,000 - 5,000 kW
W97: Standby Power General Service 1,500 to 4,999 kW
W98: Standby - Large Use
W99: Standby Power General Service Large Use
W100: Standby Distribution Service

Sheet 4. RRR Data
B15: Rate Class | C15: Rate Description | D15: Unit | E15: Rate | F15: Non-Loss Adjusted Metered kWh | G15: Non-Loss Adjusted Metered kW | H15: Applicable Loss Factor eg: (1.0325) | I15: Loss Adjusted Billed kWh
B17: Residential | C17: RTSR - Network | D17: kWh | E17: 0.0076 | F17: 93153598.8 | H17: 1.0526 | I17: =F17*H17 -> 98053478.1
B18: Residential | C18: RTSR - Connection | D18: kWh | E18: 0.0057 | F18: 93153598.8 | H18: 1.0526 | I18: =F18*H18 -> 98053478.1
B19: General Service Less Than 50 kW | C19: RTSR - Network | D19: kWh | E19: 0.0071 | F19: 19224957.6 | H19: 1.0526 | I19: =F19*H19 -> 20236190.37
B20: General Service Less Than 50 kW | C20: RTSR - Connection | D20: kWh | E20: 0.005 | F20: 19224957.6 | H20: 1.0526 | I20: =F20*H20 -> 20236190.37
B21: General Service 50 to 4,999 kW | C21: RTSR - Network | D21: kW | E21: 2.8217 | G21: 48415.71
B22: General Service 50 to 4,999 kW | C22: RTSR - Connection | D22: kW | E22: 2.0135 | G22: 48415.71
B23: General Service 50 to 4,999 kW – Interval Metered | C23: RTSR - Network | D23: kW | E23: 2.8578 | G23: 129552.29
B24: General Service 50 to 4,999 kW – Interval Metered | C24: RTSR - Connection | D24: kW | E24: 2.1223 | G24: 129552.29
B25: Unmetered Scattered Load | C25: RTSR - Network | D25: kWh | E25: 0.0071 | F25: 365406 | H25: 1.0526 | I25: =F25*H25 -> 384626.3556
B26: Unmetered Scattered Load | C26: RTSR - Connection | D26: kWh | E26: 0.005 | F26: 365406 | H26: 1.0526 | I26: =F26*H26 -> 384626.3556
B27: Street Lighting | C27: RTSR - Network | D27: kW | E27: 2.1281 | G27: 1990
B28: Street Lighting | C28: RTSR - Connection | D28: kW | E28: 1.5565 | G28: 1990
B29: Embedded Distributor | C29: RTSR - Network | D29: kW | E29: 3.78 | G29: 121949.05
B30: Embedded Distributor | C30: RTSR - Connection | D30: kW | E30: 0.86 | G30: 121949.05

Sheet 5. UTRs and Sub-Transmission
B18: Uniform Transmission Rates | C18: Unit | E18: Effective January 1, 2014 | G18: Effective January 1, 2015 | I18: Effective January 1, 2016
B20: Rate Description | E20: Rate | G20: Rate | I20: Rate
B22: Network Service Rate | C22: kW | E22: 3.82 | G22: 3.78 | I22: 3.66
B24: Line Connection Service Rate | C24: kW | E24: 0.82 | G24: 0.86 | I24: 0.87
B26: Transformation Connection Service Rate | C26: kW | E26: 1.98 | G26: 2
B29: Hydro One Sub-Transmission Rates | C29: Unit | E29: Effective January 1, 2014 to April 30, 2015 | G29: Effective May 1, 2015 | I29: Effective January 1, 2016
B33: Rate Description | E33: Rate | G33: Rate | I33: Rate
B35: Network Service Rate | C35: kW | E35: 3.23 | G35: 3.4121 | I35: 3.3396
B37: Line Connection Service Rate | C37: kW | E37: 0.65 | G37: 0.7879 | I37: 0.7791
B39: Transformation Connection Service Rate | C39: kW | E39: 1.62 | G39: 1.8018 | I39: 1.7713
B41: Both Line and Transformation Connection Service Rate | C41: kW | E41: =SUM(E39,E37) -> 2.27 | G41: =SUM(G39,G37) -> 2.5897 | I41: =SUM(I39,I37) -> 2.5504
B44: If needed, add extra host here. (I) | C44: Unit | E44: Effective January 1, 2014 | G44: Effective January 1, 2015 | I44: Effective January 1, 2016
B48: Rate Description | E48: Rate | G48: Rate | I48: Rate
B50: Network Service Rate | C50: kW
B52: Line Connection Service Rate | C52: kW
B54: Transformation Connection Service Rate | C54: kW
B56: Both Line and Transformation Connection Service Rate | C56: kW | E56: =SUM(E52,E54) -> 0 | G56: =SUM(G52,G54) -> 0 | I56: =I54+I52 -> 0
B59: If needed, add extra host here. (II) | C59: Unit | E59: Effective January 1, 2014 | G59: Effective January 1, 2015 | I59: Effective January 1, 2016
B63: Rate Description | E63: Rate | G63: Rate | I63: Rate
B65: Network Service Rate | C65: kW
B67: Line Connection Service Rate | C67: kW
B69: Transformation Connection Service Rate | C69: kW
B71: Both Line and Transformation Connection Service Rate | C71: kW | E71: =SUM(E67,E69) -> 0 | G71: =SUM(G67,G69) -> 0 | I71: =I69+I67 -> 0
B75: Hydro One Sub-Transmission Rate Rider 9A | C75: Unit | E75: Effective January 1, 2014 | G75: Effective January 1, 2015 | I75: Effective January 1, 2016
B77: Rate Description | E77: Rate | G77: Rate | I77: Rate
B79: RSVA Transmission network – 4714 – which affects 1584 | C79: kW | E79: 0.1465 | G79: 0 | I79: 0
B81: RSVA Transmission connection – 4716 – which affects 1586 | C81: kW | E81: 0.0667 | G81: 0 | I81: 0
B83: RSVA LV – 4750 – which affects 1550 | C83: kW | E83: 0.0475 | G83: 0 | I83: 0
B85: RARA 1 – 2252 – which affects 1590 | C85: kW | E85: 0.0419 | G85: 0 | I85: 0
B87: RARA 1 – 2252 – which affects 1590 (2008) | C87: kW | E87: -0.027 | G87: 0 | I87: 0
B89: RARA 1 – 2252 – which affects 1590 (2009) | C89: kW | E89: -0.0006 | G89: 0 | I89: 0
B91: Hydro One Sub-Transmission Rate Rider 9A | C91: kW | E91: 0.275 | G91: 0 | I91: =SUM(I79:I89) -> 0
E94: Historical 2014 | G94: Current 2015 | I94: Forecast 2016
B95: Low Voltage Switchgear Credit (if applicable, enter as a negative value) | C95: $

Sheet 6. Historical Wholesale
B21: IESO | D21: Network | H21: Line Connection | L21: Transformation Connection | P21: Total Line
B22: Month | D22: Units Billed | E22: Rate | F22: Amount | H22: Units Billed | I22: Rate | J22: Amount | L22: Units Billed | M22: Rate | N22: Amount | P22: Amount
B24: January | D24: 16988.97 | E24: =IF(D24<>0,F24/D24,0) -> 3.7800002 | F24: 64218.31 | H24: 16988.97 | I24: =IF(H24<>0,J24/H24,0) -> 0.8599997528 | J24: 14610.51 | L24: =H24 -> 16988.97 | M24: =IF(L24<>0,N24/L24,0) -> 1.770000182 | N24: 30070.48 | P24: =J24+N24 -> 44680.99
B25: February | D25: 15598.57 | E25: =IF(D25<>0,F25/D25,0) -> 3.779999705 | F25: 58962.59 | H25: 15598.57 | I25: =IF(H25<>0,J25/H25,0) -> 0.8599999872 | J25: 13414.77 | L25: =H25 -> 15598.57 | M25: =IF(L25<>0,N25/L25,0) -> 1.770000071 | N25: 27609.47 | P25: 41024.24
B26: March | D26: 15701.72 | E26: 3.779999898 | F26: 59352.5 | H26: 14989.29 | I26: 0.86000004 | J26: 12890.79 | L26: 14989.29 | M26: 1.76999978 | N26: 26531.04 | P26: 39421.83
B27: April | D27: 10861.55 | E27: 3.780000092 | F27: 41056.66 | H27: 12763.7 | I27: 0.8599998433 | J27: 10976.78 | L27: 12763.7 | M27: 1.770000078 | N27: 22591.75 | P27: 33568.53
B28: May | D28: 17205.65 | E28: 3.780000174 | F28: 65037.36 | H28: 16299.54 | I28: 0.8599997301 | J28: 14017.6 | L28: 16299.54 | M28: 1.770000258 | N28: 28850.19 | P28: 42867.79
B29: June | D29: 20276.06 | E29: 3.780000158 | F29: 76643.51 | H29: 19333.22 | I29: 0.8600000414 | J29: 16626.57 | L29: 19333.22 | M29: 1.770000031 | N29: 34219.8 | P29: 50846.37
B30: July | D30: 22517.07 | E30: 3.779999796 | F30: 85114.52 | H30: 22517.07 | I30: 0.8599999911 | J30: 19364.68 | L30: 22517.07 | M30: 1.769999827 | N30: 39855.21 | P30: 59219.89
B31: August | D31: 22302.75 | E31: 3.780000224 | F31: 84304.4 | H31: 21600.31 | I31: 0.8600001574 | J31: 18576.27 | L31: 21600.31 | M31: 1.77000006 | N31: 38232.55 | P31: 56808.82
B32: September | D32: 22156.2 | E32: 3.780000181 | F32: 83750.44 | H32: 21377.09 | I32: 0.8600001216 | J32: 18384.3 | L32: 21377.09 | M32: 1.770000033 | N32: 37837.45 | P32: 56221.75
B33: October | D33: 12738.66 | E33: 3.779999623 | F33: 48152.13 | H33: 12411.23 | I33: 0.8600001773 | J33: 10673.66 | L33: 12411.23 | M33: 1.770000234 | N33: 21967.88 | P33: 32641.54
B34: November | D34: 12369.54 | E34: 3.779999903 | F34: 46756.86 | H34: 14552.4 | I34: 0.8599997251 | J34: 12515.06 | L34: 14552.4 | M34: 1.770000137 | N34: 25757.75 | P34: 38272.81
B35: December | D35: 14617.59 | E35: 3.779999986 | F35: 55254.49 | H35: 14651.79 | I35: 0.860000041 | J35: 12600.54 | L35: 14651.79 | M35: 1.770000116 | N35: 25933.67 | P35: 38534.21
B37: Total | D37: =SUM(D24:D35) -> 203334.33 | E37: =IF(D37<>0,F37/D37,0) -> 3.780000013 | F37: =SUM(F24:F35) -> 768603.77 | H37: =SUM(H24:H35) -> 203083.18 | I37: =IF(H37<>0,J37/H37,0) -> 0.8599999764 | J37: =SUM(J24:J35) -> 174651.53 | L37: =SUM(L24:L35) -> 203083.18 | M37: =IF(L37<>0,N37/L37,0) -> 1.770000056 | N37: =SUM(N24:N35) -> 359457.24 | P37: =SUM(P24:P35) -> 534108.77
B39: Hydro One | D39: Network | H39: Line Connection | L39: Transformation Connection | P39: Total Line
B41: Month | D41: Units Billed | E41: Rate | F41: Amount | H41: Units Billed | I41: Rate | J41: Amount | L41: Units Billed | M41: Rate | N41: Amount | P41: Amount
B43: January | D43: 14445.1 | E43: =IF(D43<>0,F43/D43,0) -> 3.230001177 | F43: 46657.69 | H43: 14445.1 | I43: =IF(H43<>0,J43/H43,0) -> 0.6500003461 | J43: 9389.32 | L43: 14445.1 | M43: =IF(L43<>0,N43/L43,0) -> 1.620000554 | N43: 23401.07 | P43: =J43+N43 -> 32790.39
B44: February | D44: 19331.46 | E44: =IF(D44<>0,F44/D44,0) -> 3.229997631 | F44: 62440.57 | H44: =D44 -> 19331.46 | I44: =IF(H44<>0,J44/H44,0) -> 0.6499995344 | J44: 12565.44 | L44: =D44 -> 19331.46 | M44: =IF(L44<>0,N44/L44,0) -> 1.619998696 | N44: 31316.94 | P44: 43882.38
B45: March | D45: 13222.33 | E45: 3.229999554 | F45: 42708.12 | H45: =D45 -> 13222.33 | I45: 0.6499996597 | J45: 8594.51 | L45: =D45 -> 13222.33 | M45: 1.619999652 | N45: 21420.17 | P45: 30014.68
B46: April | D46: 12504.67 | E46: =IF(D46<>0,F46/D46,0) -> 3.262517923 | F46: =7619.14+33177.57 -> 40796.71 | H46: 12612.22 | I46: 0.6746242929 | J46: =1774.49+6734.02 -> 8508.51 | L46: =H46 -> 12612.22 | M46: 1.652464039 | N46: =4057.98+16783.26 -> 20841.24 | P46: 29349.75
B47: May | D47: 15481.51 | E47: 3.412100628 | F47: 52824.47 | H47: =D47 -> 15481.51 | I47: 0.7878998883 | J47: 12197.88 | L47: =D47 -> 15481.51 | M47: 1.801800341 | N47: 27894.59 | P47: 40092.47
B48: June | D48: 19810.25 | E48: 3.412100302 | F48: 67594.56 | H48: 19810.25 | I48: 0.7879002032 | J48: 15608.5 | L48: 19810.25 | M48: 1.801800078 | N48: 35694.11 | P48: 51302.61
B49: July | D49: 21723.08 | E49: 3.412099942 | F49: 74121.32 | H49: 21723.08 | I49: 0.7878997822 | J49: 17115.61 | L49: 21723.08 | M49: 1.801799745 | N49: 39140.64 | P49: 56256.25
B50: August | D50: 19681.57 | E50: 3.412118037 | F50: 67155.84 | H50: 19681.57 | I50: 0.7879041154 | J50: 15507.19 | L50: 19681.57 | M50: 1.80180951 | N50: 35462.44 | P50: 50969.63
B51: September | D51: 18767.5 | E51: 3.412100706 | F51: 64036.6 | H51: 19134 | I51: 0.7879000732 | J51: 15075.68 | L51: =H51 -> 19134 | M51: 1.801852723 | N51: 34476.65 | P51: 49552.33
B52: October | D52: 11578.27 | E52: 3.412098699 | F52: 39506.2 | H52: 11724.99 | I52: 0.7879000323 | J52: 9238.12 | L52: =H52 -> 11724.99 | M52: 1.801800257 | N52: 21126.09 | P52: 30364.21
B53: November | D53: 12702.89 | E53: 3.412099136 | F53: 43343.52 | H53: 12702.89 | I53: 0.7878994465 | J53: 10008.6 | L53: 12702.89 | M53: 1.801799433 | N53: 22888.06 | P53: 32896.66
B54: December | D54: 12859.29 | E54: 3.412099735 | F54: 43877.18 | H54: 12999.38 | I54: 0.7878998845 | J54: 10242.21 | L54: 12999.38 | M54: 1.801799009 | N54: 23422.27 | P54: 33664.48
B56: Total | D56: =SUM(D43:D54) -> 192107.92 | E56: =IF(D56<>0,F56/D56,0) -> 3.357814608 | F56: =SUM(F43:F54) -> 645062.78 | H56: =SUM(H43:H54) -> 192868.78 | I56: =IF(H56<>0,J56/H56,0) -> 0.7468889988 | J56: =SUM(J43:J54) -> 144051.57 | L56: =SUM(L43:L54) -> 192868.78 | M56: =IF(L56<>0,N56/L56,0) -> 1.747738903 | N56: =SUM(N43:N54) -> 337084.27 | P56: =SUM(P43:P54) -> 481135.84
B58: Add Extra Host Here (I) | D58: Network | H58: Line Connection | L58: Transformation Connection | P58: Total Line
B59: (if needed)
B60: Month | D60: Units Billed | E60: Rate | F60: Amount | H60: Units Billed | I60: Rate | J60: Amount | L60: Units Billed | M60: Rate | N60: Amount | P60: Amount
B62: January | E62: =IF(D62<>0,F62/D62,0) -> 0 | I62: =IF(H62<>0,J62/H62,0) -> 0 | M62: =IF(L62<>0,N62/L62,0) -> 0 | P62: =J62+N62 -> 0
B63: February | E63: 0 | I63: 0 | M63: 0 | P63: 0
B64: March | E64: 0 | I64: 0 | M64: 0 | P64: 0
B65: April | E65: 0 | I65: 0 | M65: 0 | P65: 0
B66: May | E66: 0 | I66: 0 | M66: 0 | P66: 0
B67: June | E67: 0 | I67: 0 | M67: 0 | P67: 0
B68: July | E68: 0 | I68: 0 | M68: 0 | P68: 0
B69: August | E69: 0 | I69: 0 | M69: 0 | P69: 0
B70: September | E70: 0 | I70: 0 | M70: 0 | P70: 0
B71: October | E71: 0 | I71: 0 | M71: 0 | P71: 0
B72: November | E72: 0 | I72: 0 | M72: 0 | P72: 0
B73: December | E73: 0 | I73: 0 | M73: 0 | P73: 0
B75: Total | D75: =SUM(D62:D73) -> 0 | E75: =IF(D75<>0,F75/D75,0) -> 0 | F75: =SUM(F62:F73) -> 0 | H75: =SUM(H62:H73) -> 0 | I75: =IF(H75<>0,J75/H75,0) -> 0 | J75: =SUM(J62:J73) -> 0 | L75: =SUM(L62:L73) -> 0 | M75: =IF(L75<>0,N75/L75,0) -> 0 | N75: =SUM(N62:N73) -> 0 | P75: =SUM(P62:P73) -> 0
B77: Add Extra Host Here (II) | D77: Network | H77: Line Connection | L77: Transformation Connection | P77: Total Line
B78: (if needed)
B79: Month | D79: Units Billed | E79: Rate | F79: Amount | H79: Units Billed | I79: Rate | J79: Amount | L79: Units Billed | M79: Rate | N79: Amount | P79: Amount
B81: January | E81: =IF(D81<>0,F81/D81,0) -> 0 | I81: =IF(H81<>0,J81/H81,0) -> 0 | M81: =IF(L81<>0,N81/L81,0) -> 0 | P81: =J81+N81 -> 0
B82: February | E82: 0 | I82: 0 | M82: 0 | P82: 0
B83: March | E83: 0 | I83: 0 | M83: 0 | P83: 0
B84: April | E84: 0 | I84: 0 | M84: 0 | P84: 0
B85: May | E85: 0 | I85: 0 | M85: 0 | P85: 0
B86: June | E86: 0 | I86: 0 | M86: 0 | P86: 0
B87: July | E87: 0 | I87: 0 | M87: 0 | P87: 0
B88: August | E88: 0 | I88: 0 | M88: 0 | P88: 0
B89: September | E89: 0 | I89: 0 | M89: 0 | P89: 0
B90: October | E90: 0 | I90: 0 | M90: 0 | P90: 0
B91: November | E91: 0 | I91: 0 | M91: 0 | P91: 0
B92: December | E92: 0 | I92: 0 | M92: 0 | P92: 0
B94: Total | D94: =SUM(D81:D92) -> 0 | E94: =IF(D94<>0,F94/D94,0) -> 0 | F94: =SUM(F81:F92) -> 0 | H94: =SUM(H81:H92) -> 0 | I94: =IF(H94<>0,J94/H94,0) -> 0 | J94: =SUM(J81:J92) -> 0 | L94: =SUM(L81:L92) -> 0 | M94: =IF(L94<>0,N94/L94,0) -> 0 | N94: =SUM(N81:N92) -> 0 | P94: =SUM(P81:P92) -> 0
B96: Total | D96: Network | H96: Line Connection | L96: Transformation Connection | P96: Total Line
B98: Month | D98: Units Billed | E98: Rate | F98: Amount | H98: Units Billed | I98: Rate | J98: Amount | L98: Units Billed | M98: Rate | N98: Amount | P98: Amount
B100: January | D100: =D24+D43+D62+D81 -> 31434.07 | E100: =IF(D100<>0,F100/D100,0) -> 3.527255618 | F100: =F24+F43+F62+F81 -> 110876 | H100: =H24+H43+H62+H81 -> 31434.07 | I100: =IF(H100<>0,J100/H100,0) -> 0.7634973772 | J100: =J24+J43+J62+J81 -> 23999.83 | L100: =L24+L43+L62+L81 -> 31434.07 | M100: =IF(L100<>0,N100/L100,0) -> 1.70106989 | N100: =N24+N43+N62+N81 -> 53471.55 | P100: =J100+N100 -> 77471.38
B101: February | D101: =D25+D44+D63+D82 -> 34930.03 | E101: 3.475609955 | F101: =F25+F44+F63+F82 -> 121403.16 | H101: =H25+H44+H63+H82 -> 34930.03 | I101: 0.743778634 | J101: =J25+J44+J63+J82 -> 25980.21 | L101: =L25+L44+L63+L82 -> 34930.03 | M101: 1.686984237 | N101: =N25+N44+N63+N82 -> 58926.41 | P101: 84906.62
B102: March | D102: 28924.05 | E102: 3.528572935 | F102: 102060.62 | H102: 28211.62 | I102: 0.7615762583 | J102: 21485.3 | L102: 28211.62 | M102: 1.699697146 | N102: 47951.21 | P102: 69436.51
B103: April | D103: 23366.22 | E103: 3.503064253 | F103: 81853.37 | H103: 25375.92 | I103: 0.7678653621 | J103: 19485.29 | L103: 25375.92 | M103: 1.711582871 | N103: 43432.99 | P103: 62918.28
B104: May | D104: 32687.16 | E104: 3.605753146 | F104: 117861.83 | H104: 31781.05 | I104: 0.824877718 | J104: 26215.48 | L104: 31781.05 | M104: 1.785491039 | N104: 56744.78 | P104: 82960.26
B105: June | D105: 40086.31 | E105: 3.59818776 | F105: 144238.07 | H105: 39143.47 | I105: 0.8235107925 | J105: 32235.07 | L105: 39143.47 | M105: 1.786093824 | N105: 69913.91 | P105: 102148.98
B106: July | D106: 44240.15 | E106: 3.599351268 | F106: 159235.84 | H106: 44240.15 | I106: 0.8245968877 | J106: 36480.29 | L106: 44240.15 | M106: 1.785614425 | N106: 78995.85 | P106: 115476.14
B107: August | D107: 41984.32 | E107: 3.607543007 | F107: 151460.24 | H107: 41281.88 | I107: 0.8256276119 | J107: 34083.46 | L107: 41281.88 | M107: 1.78516555 | N107: 73694.99 | P107: 107778.45
B108: September | D108: 40923.7 | E108: 3.61128246 | F108: 147787.04 | H108: 40511.09 | I108: 0.8259461792 | J108: 33459.98 | L108: 40511.09 | M108: 1.78504454 | N108: 72314.1 | P108: 105774.08
B109: October | D109: 24316.93 | E109: 3.604827172 | F109: 87658.33 | H109: 24136.22 | I109: 0.8249750789 | J109: 19911.78 | L109: 24136.22 | M109: 1.785448177 | N109: 43093.97 | P109: 63005.75
B110: November | D110: 25072.43 | E110: 3.593603811 | F110: 90100.38 | H110: 27255.29 | I110: 0.8263959033 | J110: 22523.66 | L110: 27255.29 | M110: 1.784820855 | N110: 48645.81 | P110: 71169.47
B111: December | D111: 27476.88 | E111: 3.607821194 | F111: 99131.67 | H111: 27651.17 | I111: 0.8261042842 | J111: 22842.75 | L111: 27651.17 | M111: 1.784949425 | N111: 49355.94 | P111: 72198.69
B113: Total | D113: =SUM(D100:D111) -> 395442.25 | E113: =IF(D113<>0,F113/D113,0) -> 3.574900128 | F113: =SUM(F100:F111) -> 1413666.55 | H113: =SUM(H100:H111) -> 395951.96 | I113: =IF(H113<>0,J113/H113,0) -> 0.8049034534 | J113: =SUM(J100:J111) -> 318703.1 | L113: =SUM(L100:L111) -> 395951.96 | M113: =IF(L113<>0,N113/L113,0) -> 1.759156616 | N113: =SUM(N100:N111) -> 696541.51 | P113: =SUM(P100:P111) -> 1015244.61
N115: Low Voltage Switchgear Credit (if applicable) | P115: ='5. UTRs and Sub-Transmission'!E95 -> 0
N117: Total including deduction for Low Voltage Switchgear Credit | P117: =P113+P115 -> 1015244.61

Sheet 7. Current Wholesale
B13: The purpose of this sheet is to calculate the expected billing when current 2015 Uniform Transmission Rates are applied against historical 2014 transmission units.
B20: IESO | D20: Network | H20: Line Connection | L20: Transformation Connection | P20: Total Line
B22: Month | D22: Units Billed | E22: Rate | F22: Amount | H22: Units Billed | I22: Rate | J22: Amount | L22: Units Billed | M22: Rate | N22: Amount | P22: Amount
B24: January | D24: ='6. Historical Wholesale'!D24 -> 16988.97 | E24: ='5. UTRs and Sub-Transmission'!G22 -> 3.78 | F24: =D24*E24 -> 64218.3066 | H24: ='6. Historical Wholesale'!H24 -> 16988.97 | I24: ='5. UTRs and Sub-Transmission'!G24 -> 0.86 | J24: =H24*I24 -> 14610.5142 | L24: ='6. Historical Wholesale'!L24 -> 16988.97 | M24: ='5. UTRs and Sub-Transmission'!G26 -> 2 | N24: =L24*M24 -> 33977.94 | P24: =J24+N24 -> 48588.4542
B25: February | D25: ='6. Historical Wholesale'!D25 -> 15598.57 | E25: =E24 -> 3.78 | F25: =D25*E25 -> 58962.5946 | H25: ='6. Historical Wholesale'!H25 -> 15598.57 | I25: =I24 -> 0.86 | J25: =H25*I25 -> 13414.7702 | L25: ='6. Historical Wholesale'!L25 -> 15598.57 | M25: =M24 -> 2 | N25: =L25*M25 -> 31197.14 | P25: 44611.9102
B26: March | D26: ='6. Historical Wholesale'!D26 -> 15701.72 | E26: =E25 -> 3.78 | F26: 59352.5016 | H26: ='6. Historical Wholesale'!H26 -> 14989.29 | I26: =I25 -> 0.86 | J26: 12890.7894 | L26: ='6. Historical Wholesale'!L26 -> 14989.29 | M26: =M25 -> 2 | N26: 29978.58 | P26: 42869.3694
B27: April | D27: ='6. Historical Wholesale'!D27 -> 10861.55 | E27: 3.78 | F27: 41056.659 | H27: ='6. Historical Wholesale'!H27 -> 12763.7 | I27: 0.86 | J27: 10976.782 | L27: ='6. Historical Wholesale'!L27 -> 12763.7 | M27: 2 | N27: 25527.4 | P27: 36504.182
B28: May | D28: ='6. Historical Wholesale'!D28 -> 17205.65 | E28: 3.78 | F28: 65037.357 | H28: ='6. Historical Wholesale'!H28 -> 16299.54 | I28: 0.86 | J28: 14017.6044 | L28: ='6. Historical Wholesale'!L28 -> 16299.54 | M28: 2 | N28: 32599.08 | P28: 46616.6844
B29: June | D29: ='6. Historical Wholesale'!D29 -> 20276.06 | E29: 3.78 | F29: 76643.5068 | H29: ='6. Historical Wholesale'!H29 -> 19333.22 | I29: 0.86 | J29: 16626.5692 | L29: ='6. Historical Wholesale'!L29 -> 19333.22 | M29: 2 | N29: 38666.44 | P29: 55293.0092
B30: July | D30: ='6. Historical Wholesale'!D30 -> 22517.07 | E30: 3.78 | F30: 85114.5246 | H30: ='6. Historical Wholesale'!H30 -> 22517.07 | I30: 0.86 | J30: 19364.6802 | L30: ='6. Historical Wholesale'!L30 -> 22517.07 | M30: 2 | N30: 45034.14 | P30: 64398.8202
B31: August | D31: ='6. Historical Wholesale'!D31 -> 22302.75 | E31: 3.78 | F31: 84304.395 | H31: ='6. Historical Wholesale'!H31 -> 21600.31 | I31: 0.86 | J31: 18576.2666 | L31: ='6. Historical Wholesale'!L31 -> 21600.31 | M31: 2 | N31: 43200.62 | P31: 61776.8866
B32: September | D32: ='6. Historical Wholesale'!D32 -> 22156.2 | E32: 3.78 | F32: 83750.436 | H32: ='6. Historical Wholesale'!H32 -> 21377.09 | I32: 0.86 | J32: 18384.2974 | L32: ='6. Historical Wholesale'!L32 -> 21377.09 | M32: 2 | N32: 42754.18 | P32: 61138.4774
B33: October | D33: ='6. Historical Wholesale'!D33 -> 12738.66 | E33: 3.78 | F33: 48152.1348 | H33: ='6. Historical Wholesale'!H33 -> 12411.23 | I33: 0.86 | J33: 10673.6578 | L33: ='6. Historical Wholesale'!L33 -> 12411.23 | M33: 2 | N33: 24822.46 | P33: 35496.1178
B34: November | D34: ='6. Historical Wholesale'!D34 -> 12369.54 | E34: 3.78 | F34: 46756.8612 | H34: ='6. Historical Wholesale'!H34 -> 14552.4 | I34: 0.86 | J34: 12515.064 | L34: ='6. Historical Wholesale'!L34 -> 14552.4 | M34: 2 | N34: 29104.8 | P34: 41619.864
B35: December | D35: ='6. Historical Wholesale'!D35 -> 14617.59 | E35: 3.78 | F35: 55254.4902 | H35: ='6. Historical Wholesale'!H35 -> 14651.79 | I35: 0.86 | J35: 12600.5394 | L35: ='6. Historical Wholesale'!L35 -> 14651.79 | M35: 2 | N35: 29303.58 | P35: 41904.1194
B37: Total | D37: =SUM(D24:D35) -> 203334.33 | E37: =IF(D37<>0,F37/D37,0) -> 3.78 | F37: =SUM(F24:F35) -> 768603.7674 | H37: =SUM(H24:H35) -> 203083.18 | I37: =IF(H37<>0,J37/H37,0) -> 0.86 | J37: =SUM(J24:J35) -> 174651.5348 | L37: =SUM(L24:L35) -> 203083.18 | M37: =IF(L37<>0,N37/L37,0) -> 2 | N37: =SUM(N24:N35) -> 406166.36 | P37: =SUM(P24:P35) -> 580817.8948
B39: Hydro One | D39: Network | H39: Line Connection | L39: Transformation Connection | P39: Total Line
B41: Month | D41: Units Billed | E41: Rate | F41: Amount | H41: Units Billed | I41: Rate | J41: Amount | L41: Units Billed | M41: Rate | N41: Amount | P41: Amount
B43: January | D43: ='6. Historical Wholesale'!D43 -> 14445.1 | E43: ='5. UTRs and Sub-Transmission'!G35+'5. UTRs and Sub-Transmission'!G79 -> 3.4121 | F43: =D43*E43 -> 49288.12571 | H43: ='6. Historical Wholesale'!H43 -> 14445.1 | I43: ='5. UTRs and Sub-Transmission'!G37+'5. UTRs and Sub-Transmission'!G81 -> 0.7879 | J43: =H43*I43 -> 11381.29429 | L43: ='6. Historical Wholesale'!L43 -> 14445.1 | M43: ='5. UTRs and Sub-Transmission'!G39 -> 1.8018 | N43: =L43*M43 -> 26027.18118 | P43: =J43+N43 -> 37408.47547
B44: February | D44: ='6. Historical Wholesale'!D44 -> 19331.46 | E44: =E43 -> 3.4121 | F44: =D44*E44 -> 65960.87467 | H44: ='6. Historical Wholesale'!H44 -> 19331.46 | I44: =I43 -> 0.7879 | J44: =H44*I44 -> 15231.25733 | L44: ='6. Historical Wholesale'!L44 -> 19331.46 | M44: =M43 -> 1.8018 | N44: =L44*M44 -> 34831.42463 | P44: 50062.68196
B45: March | D45: ='6. Historical Wholesale'!D45 -> 13222.33 | E45: =E44 -> 3.4121 | F45: 45115.91219 | H45: ='6. Historical Wholesale'!H45 -> 13222.33 | I45: =I44 -> 0.7879 | J45: 10417.87381 | L45: ='6. Historical Wholesale'!L45 -> 13222.33 | M45: =M44 -> 1.8018 | N45: 23823.99419 | P45: 34241.868
B46: April | D46: ='6. Historical Wholesale'!D46 -> 12504.67 | E46: 3.4121 | F46: 42667.18451 | H46: ='6. Historical Wholesale'!H46 -> 12612.22 | I46: 0.7879 | J46: 9937.168138 | L46: ='6. Historical Wholesale'!L46 -> 12612.22 | M46: =M45 -> 1.8018 | N46: 22724.698 | P46: 32661.86613
B47: May | D47: ='6. Historical Wholesale'!D47 -> 15481.51 | E47: 3.4121 | F47: 52824.46027 | H47: ='6. Historical Wholesale'!H47 -> 15481.51 | I47: 0.7879 | J47: 12197.88173 | L47: ='6. Historical Wholesale'!L47 -> 15481.51 | M47: 1.8018 | N47: 27894.58472 | P47: 40092.46645
B48: June | D48: ='6. Historical Wholesale'!D48 -> 19810.25 | E48: 3.4121 | F48: 67594.55403 | H48: ='6. Historical Wholesale'!H48 -> 19810.25 | I48: 0.7879 | J48: 15608.49598 | L48: ='6. Historical Wholesale'!L48 -> 19810.25 | M48: 1.8018 | N48: 35694.10845 | P48: 51302.60442
B49: July | D49: ='6. Historical Wholesale'!D49 -> 21723.08 | E49: 3.4121 | F49: 74121.32127 | H49: ='6. Historical Wholesale'!H49 -> 21723.08 | I49: 0.7879 | J49: 17115.61473 | L49: ='6. Historical Wholesale'!L49 -> 21723.08 | M49: 1.8018 | N49: 39140.64554 | P49: 56256.26028
B50: August | D50: ='6. Historical Wholesale'!D50 -> 19681.57 | E50: 3.4121 | F50: 67155.485 | H50: ='6. Historical Wholesale'!H50 -> 19681.57 | I50: 0.7879 | J50: 15507.109 | L50: ='6. Historical Wholesale'!L50 -> 19681.57 | M50: 1.8018 | N50: 35462.25283 | P50: 50969.36183
B51: September | D51: ='6. Historical Wholesale'!D51 -> 18767.5 | E51: 3.4121 | F51: 64036.58675 | H51: ='6. Historical Wholesale'!H51 -> 19134 | I51: 0.7879 | J51: 15075.6786 | L51: ='6. Historical Wholesale'!L51 -> 19134 | M51: 1.8018 | N51: 34475.6412 | P51: 49551.3198
B52: October | D52: ='6. Historical Wholesale'!D52 -> 11578.27 | E52: 3.4121 | F52: 39506.21507 | H52: ='6. Historical Wholesale'!H52 -> 11724.99 | I52: 0.7879 | J52: 9238.119621 | L52: ='6. Historical Wholesale'!L52 -> 11724.99 | M52: 1.8018 | N52: 21126.08698 | P52: 30364.2066
B53: November | D53: ='6. Historical Wholesale'!D53 -> 12702.89 | E53: 3.4121 | F53: 43343.53097 | H53: ='6. Historical Wholesale'!H53 -> 12702.89 | I53: 0.7879 | J53: 10008.60703 | L53: ='6. Historical Wholesale'!L53 -> 12702.89 | M53: 1.8018 | N53: 22888.0672 | P53: 32896.67423
B54: December | D54: ='6. Historical Wholesale'!D54 -> 12859.29 | E54: 3.4121 | F54: 43877.18341 | H54: ='6. Historical Wholesale'!H54 -> 12999.38 | I54: 0.7879 | J54: 10242.2115 | L54: ='6. Historical Wholesale'!L54 -> 12999.38 | M54: 1.8018 | N54: 23422.28288 | P54: 33664.49439
B56: Total | D56: =SUM(D43:D54) -> 192107.92 | E56: =IF(D56<>0,F56/D56,0) -> 3.4121 | F56: =SUM(F43:F54) -> 655491.4338 | H56: =SUM(H43:H54) -> 192868.78 | I56: =IF(H56<>0,J56/H56,0) -> 0.7879 | J56: =SUM(J43:J54) -> 151961.3118 | L56: =SUM(L43:L54) -> 192868.78 | M56: =IF(L56<>0,N56/L56,0) -> 1.8018 | N56: =SUM(N43:N54) -> 347510.9678 | P56: =SUM(P43:P54) -> 499472.2796
B58: ='6. Historical Wholesale'!B58 -> Add Extra Host Here (I) | D58: Network | H58: Line Connection | L58: Transformation Connection | P58: Total Line
B60: Month | D60: Units Billed | E60: Rate | F60: Amount | H60: Units Billed | I60: Rate | J60: Amount | L60: Units Billed | M60: Rate | N60: Amount | P60: Amount
B62: January | D62: ='6. Historical Wholesale'!D62 -> 0 | E62: ='5. UTRs and Sub-Transmission'!G50 -> 0 | F62: =D62*E62 -> 0 | H62: ='6. Historical Wholesale'!H62 -> 0 | I62: ='5. UTRs and Sub-Transmission'!G52 -> 0 | J62: =H62*I62 -> 0 | L62: ='6. Historical Wholesale'!L62 -> 0 | M62: ='5. UTRs and Sub-Transmission'!G54 -> 0 | N62: =L62*M62 -> 0 | P62: =J62+N62 -> 0
B63: February | D63: ='6. Historical Wholesale'!D63 -> 0 | E63: =E62 -> 0 | F63: =D63*E63 -> 0 | H63: ='6. Historical Wholesale'!H63 -> 0 | I63: =I62 -> 0 | J63: =H63*I63 -> 0 | L63: ='6. Historical Wholesale'!L63 -> 0 | M63: =M62 -> 0 | N63: =L63*M63 -> 0 | P63: 0
B64: March | D64: ='6. Historical Wholesale'!D64 -> 0 | E64: =E63 -> 0 | F64: 0 | H64: ='6. Historical Wholesale'!H64 -> 0 | I64: =I63 -> 0 | J64: 0 | L64: ='6. Historical Wholesale'!L64 -> 0 | M64: =M63 -> 0 | N64: 0 | P64: 0
B65: April | D65: ='6. Historical Wholesale'!D65 -> 0 | E65: 0 | F65: 0 | H65: ='6. Historical Wholesale'!H65 -> 0 | I65: 0 | J65: 0 | L65: ='6. Historical Wholesale'!L65 -> 0 | M65: =M64 -> 0 | N65: 0 | P65: 0
B66: May | D66: ='6. Historical Wholesale'!D66 -> 0 | E66: 0 | F66: 0 | H66: ='6. Historical Wholesale'!H66 -> 0 | I66: 0 | J66: 0 | L66: ='6. Historical Wholesale'!L66 -> 0 | M66: 0 | N66: 0 | P66: 0
B67: June | D67: ='6. Historical Wholesale'!D67 -> 0 | E67: 0 | F67: 0 | H67: ='6. Historical Wholesale'!H67 -> 0 | I67: 0 | J67: 0 | L67: ='6. Historical Wholesale'!L67 -> 0 | M67: 0 | N67: 0 | P67: 0
B68: July | D68: ='6. Historical Wholesale'!D68 -> 0 | E68: 0 | F68: 0 | H68: ='6. Historical Wholesale'!H68 -> 0 | I68: 0 | J68: 0 | L68: ='6. Historical Wholesale'!L68 -> 0 | M68: 0 | N68: 0 | P68: 0
B69: August | D69: ='6. Historical Wholesale'!D69 -> 0 | E69: 0 | F69: 0 | H69: ='6. Historical Wholesale'!H69 -> 0 | I69: 0 | J69: 0 | L69: ='6. Historical Wholesale'!L69 -> 0 | M69: 0 | N69: 0 | P69: 0
B70: September | D70: ='6. Historical Wholesale'!D70 -> 0 | E70: 0 | F70: 0 | H70: ='6. Historical Wholesale'!H70 -> 0 | I70: 0 | J70: 0 | L70: ='6. Historical Wholesale'!L70 -> 0 | M70: 0 | N70: 0 | P70: 0
B71: October | D71: ='6. Historical Wholesale'!D71 -> 0 | E71: 0 | F71: 0 | H71: ='6. Historical Wholesale'!H71 -> 0 | I71: 0 | J71: 0 | L71: ='6. Historical Wholesale'!L71 -> 0 | M71: 0 | N71: 0 | P71: 0
B72: November | D72: ='6. Historical Wholesale'!D72 -> 0 | E72: 0 | F72: 0 | H72: ='6. Historical Wholesale'!H72 -> 0 | I72: 0 | J72: 0 | L72: ='6. Historical Wholesale'!L72 -> 0 | M72: 0 | N72: 0 | P72: 0
B73: December | D73: ='6. Historical Wholesale'!D73 -> 0 | E73: 0 | F73: 0 | H73: ='6. Historical Wholesale'!H73 -> 0 | I73: 0 | J73: 0 | L73: ='6. Historical Wholesale'!L73 -> 0 | M73: 0 | N73: 0 | P73: 0
B75: Total | D75: =SUM(D62:D73) -> 0 | E75: =IF(D75<>0,F75/D75,0) -> 0 | F75: =SUM(F62:F73) -> 0 | H75: =SUM(H62:H73) -> 0 | I75: =IF(H75<>0,J75/H75,0) -> 0 | J75: =SUM(J62:J73) -> 0 | L75: =SUM(L62:L73) -> 0 | M75: =IF(L75<>0,N75/L75,0) -> 0 | N75: =SUM(N62:N73) -> 0 | P75: =SUM(P62:P73) -> 0
B77: ='6. Historical Wholesale'!B77 -> Add Extra Host Here (II) | D77: Network | H77: Line Connection | L77: Transformation Connection | P77: Total Line
B79: Month | D79: Units Billed | E79: Rate | F79: Amount | H79: Units Billed | I79: Rate | J79: Amount | L79: Units Billed | M79: Rate | N79: Amount | P79: Amount
B81: January | D81: ='6. Historical Wholesale'!D81 -> 0 | E81: ='5. UTRs and Sub-Transmission'!G65 -> 0 | F81: =D81*E81 -> 0 | H81: ='6. Historical Wholesale'!H81 -> 0 | I81: ='5. UTRs and Sub-Transmission'!G67 -> 0 | J81: =H81*I81 -> 0 | L81: ='6. Historical Wholesale'!L81 -> 0 | M81: ='5. UTRs and Sub-Transmission'!G69 -> 0 | N81: =L81*M81 -> 0 | P81: =J81+N81 -> 0
B82: February | D82: ='6. Historical Wholesale'!D82 -> 0 | E82: =E81 -> 0 | F82: =D82*E82 -> 0 | H82: ='6. Historical Wholesale'!H82 -> 0 | I82: =I81 -> 0 | J82: =H82*I82 -> 0 | L82: ='6. Historical Wholesale'!L82 -> 0 | M82: =M81 -> 0 | N82: =L82*M82 -> 0 | P82: 0
B83: March | D83: ='6. Historical Wholesale'!D83 -> 0 | E83: =E82 -> 0 | F83: 0 | H83: ='6. Historical Wholesale'!H83 -> 0 | I83: =I82 -> 0 | J83: 0 | L83: ='6. Historical Wholesale'!L83 -> 0 | M83: =M82 -> 0 | N83: 0 | P83: 0
B84: April | D84: ='6. Historical Wholesale'!D84 -> 0 | E84: 0 | F84: 0 | H84: ='6. Historical Wholesale'!H84 -> 0 | I84: 0 | J84: 0 | L84: ='6. Historical Wholesale'!L84 -> 0 | M84: =M83 -> 0 | N84: 0 | P84: 0
B85: May | D85: ='6. Historical Wholesale'!D85 -> 0 | E85: 0 | F85: 0 | H85: ='6. Historical Wholesale'!H85 -> 0 | I85: 0 | J85: 0 | L85: ='6. Historical Wholesale'!L85 -> 0 | M85: 0 | N85: 0 | P85: 0
B86: June | D86: ='6. Historical Wholesale'!D86 -> 0 | E86: 0 | F86: 0 | H86: ='6. Historical Wholesale'!H86 -> 0 | I86: 0 | J86: 0 | L86: ='6. Historical Wholesale'!L86 -> 0 | M86: 0 | N86: 0 | P86: 0
B87: July | D87: ='6. Historical Wholesale'!D87 -> 0 | E87: 0 | F87: 0 | H87: ='6. Historical Wholesale'!H87 -> 0 | I87: 0 | J87: 0 | L87: ='6. Historical Wholesale'!L87 -> 0 | M87: 0 | N87: 0 | P87: 0
B88: August | D88: ='6. Historical Wholesale'!D88 -> 0 | E88: 0 | F88: 0 | H88: ='6. Historical Wholesale'!H88 -> 0 | I88: 0 | J88: 0 | L88: ='6. Historical Wholesale'!L88 -> 0 | M88: 0 | N88: 0 | P88: 0
B89: September | D89: ='6. Historical Wholesale'!D89 -> 0 | E89: 0 | F89: 0 | H89: ='6. Historical Wholesale'!H89 -> 0 | I89: 0 | J89: 0 | L89: ='6. Historical Wholesale'!L89 -> 0 | M89: 0 | N89: 0 | P89: 0
B90: October | D90: ='6. Historical Wholesale'!D90 -> 0 | E90: 0 | F90: 0 | H90: ='6. Historical Wholesale'!H90 -> 0 | I90: 0 | J90: 0 | L90: ='6. Historical Wholesale'!L90 -> 0 | M90: 0 | N90: 0 | P90: 0
B91: November | D91: ='6. Historical Wholesale'!D91 -> 0 | E91: 0 | F91: 0 | H91: ='6. Historical Wholesale'!H91 -> 0 | I91: 0 | J91: 0 | L91: ='6. Historical Wholesale'!L91 -> 0 | M91: 0 | N91: 0 | P91: 0
B92: December | D92: ='6. Historical Wholesale'!D92 -> 0 | E92: 0 | F92: 0 | H92: ='6. Historical Wholesale'!H92 -> 0 | I92: 0 | J92: 0 | L92: ='6. Historical Wholesale'!L92 -> 0 | M92: 0 | N92: 0 | P92: 0
B94: Total | D94: =SUM(D81:D92) -> 0 | E94: =IF(D94<>0,F94/D94,0) -> 0 | F94: =SUM(F81:F92) -> 0 | H94: =SUM(H81:H92) -> 0 | I94: =IF(H94<>0,J94/H94,0) -> 0 | J94: =SUM(J81:J92) -> 0 | L94: =SUM(L81:L92) -> 0 | M94: =IF(L94<>0,N94/L94,0) -> 0 | N94: =SUM(N81:N92) -> 0 | P94: =SUM(P81:P92) -> 0
B96: Total | D96: Network | H96: Line Connection | L96: Transformation Connection | P96: Total Line
B98: Month | D98: Units Billed | E98: Rate | F98: Amount | H98: Units Billed | I98: Rate | J98: Amount | L98: Units Billed | M98: Rate | N98: Amount | P98: Amount
B100: January | D100: =D24+D43+D62+D81 -> 31434.07 | E100: =IF(D100<>0,F100/D100,0) -> 3.610936551 | F100: =F24+F43+F62+F81 -> 113506.4323 | H100: =H24+H43+H62+H81 -> 31434.07 | I100: =IF(H100<>0,J100/H100,0) -> 0.8268674241 | J100: =J24+J43+J62+J81 -> 25991.80849 | L100: =L24+L43+L62+L81 -> 31434.07 | M100: =IF(L100<>0,N100/L100,0) -> 1.908919882 | N100: =N24+N43+N62+N81 -> 60005.12118 | P100: =J100+N100 -> 85996.92967
B101: February | D101: =D25+D44+D63+D82 -> 34930.03 | E101: 3.576391697 | F101: =F25+F44+F63+F82 -> 124923.4693 | H101: =H25+H44+H63+H82 -> 34930.03 | I101: 0.8200974214 | J101: =J25+J44+J63+J82 -> 28646.02753 | L101: =L25+L44+L63+L82 -> 34930.03 | M101: 1.890309417 | N101: =N25+N44+N63+N82 -> 66028.56463 | P101: 94674.59216
B102: March | D102: 28924.05 | E102: 3.611818324 | F102: 104468.4138 | H102: 28211.62 | I102: 0.8262078961 | J102: 23308.66321 | L102: 28211.62 | M102: 1.907106866 | N102: 53802.57419 | P102: 77111.2374
B103: April | D103: 23366.22 | E103: 3.583114578 | F103: 83723.84351 | H103: 25375.92 | I103: 0.8241651983 | J103: 20913.95014 | L103: 25375.92 | M103: 1.901491571 | N103: 48252.098 | P103: 69166.04813
B104: May | D104: 32687.16 | E104: 3.605752756 | F104: 117861.8173 | H104: 31781.05 | I104: 0.8248779109 | J104: 26215.48613 | L104: 31781.05 | M104: 1.90345079 | N104: 60493.66472 | P104: 86709.15085
B105: June | D105: 40086.31 | E105: 3.598187531 | F105: 144238.0608 | H105: 39143.47 | I105: 0.8235106692 | J105: 32235.06518 | L105: 39143.47 | M105: 1.899692297 | N105: 74360.54845 | P105: 106595.6136
B106: July | D106: 44240.15 | E106: 3.599351401 | F106: 159235.8459 | H106: 44240.15 | I106: 0.8245969992 | J106: 36480.29493 | L106: 44240.15 | M106: 1.902678575 | N106: 84174.78554 | P106: 120655.0805
B107: August | D107: 41984.32 | E107: 3.607534432 | F107: 151459.88 | H107: 41281.88 | I107: 0.8256255675 | J107: 34083.3756 | L107: 41281.88 | M107: 1.905506068 | N107: 78662.87283 | P107: 112746.2484
B108: September | D108: 40923.7 | E108: 3.611282038 | F108: 147787.0228 | H108: 40511.09 | I108: 0.8259460804 | J108: 33459.976 | L108: 40511.09 | M108: 1.906387145 | N108: 77229.8212 | P108: 110689.7972
B109: October | D109: 24316.93 | E109: 3.604827989 | F109: 87658.34987 | H109: 24136.22 | I109: 0.8249749721 | J109: 19911.77742 | L109: 24136.22 | M109: 1.903717607 | N109: 45948.54698 | P109: 65860.3244
B110: November | D110: 25072.43 | E110: 3.593604296 | F110: 90100.39217 | H110: 27255.29 | I110: 0.8263963081 | J110: 22523.67103 | L110: 27255.29 | M110: 1.907624802 | N110: 51992.8672 | P110: 74516.53823
B111: December | D111: 27476.88 | E111: 3.607821325 | F111: 99131.67361 | H111: 27651.17 | I111: 0.8261043168 | J111: 22842.7509 | L111: 27651.17 | M111: 1.90682213 | N111: 52725.86288 | P111: 75568.61379
B113: Total | D113: =SUM(D100:D111) -> 395442.25 | E113: =IF(D113<>0,F113/D113,0) -> 3.60127225 | F113: =SUM(F100:F111) -> 1424095.201 | H113: =SUM(H100:H111) -> 395951.96 | I113: =IF(H113<>0,J113/H113,0) -> 0.8248799843 | J113: =SUM(J100:J111) -> 326612.8466 | L113: =SUM(L100:L111) -> 395951.96 | M113: =IF(L113<>0,N113/L113,0) -> 1.90345649 | N113: =SUM(N100:N111) -> 753677.3278 | P113: =SUM(P100:P111) -> 1080290.174
N115: Low Voltage Switchgear Credit (if applicable) | P115: ='5. UTRs and Sub-Transmission'!G95 -> 0
N117: Total including deduction for Low Voltage Switchgear Credit | P117: =P113+P115 -> 1080290.174

Sheet 8. Forecast Wholesale
B13: The purpose of this sheet is to calculate the expected billing when forecasted 2016 Uniform Transmission Rates are applied against historical 2014 transmission units.
B20: IESO | D20: Network | H20: Line Connection | L20: Transformation Connection | P20: Total Line
B22: Month | D22: Units Billed | E22: Rate | F22: Amount | H22: Units Billed | I22: Rate | J22: Amount | L22: Units Billed | M22: Rate | N22: Amount | P22: Amount
B24: January | D24: ='6. Historical Wholesale'!D24 -> 16988.97 | E24: ='5. UTRs and Sub-Transmission'!I22 -> 3.66 | F24: =D24*E24 -> 62179.6302 | H24: ='6. Historical Wholesale'!H24 -> 16988.97 | I24: ='5. UTRs and Sub-Transmission'!I24 -> 0.87 | J24: =H24*I24 -> 14780.4039 | L24: ='6. Historical Wholesale'!L24 -> 16988.97 | M24: ='5. UTRs and Sub-Transmission'!I26 -> 0 | N24: =L24*M24 -> 0 | P24: =J24+N24 -> 14780.4039
B25: February | D25: ='6. Historical Wholesale'!D25 -> 15598.57 | E25: =E24 -> 3.66 | F25: 57090.7662 | H25: ='6. Historical Wholesale'!H25 -> 15598.57 | I25: =I24 -> 0.87 | J25: 13570.7559 | L25: ='6. Historical Wholesale'!L25 -> 15598.57 | M25: =M24 -> 0 | N25: 0 | P25: 13570.7559
B26: March | D26: ='6. Historical Wholesale'!D26 -> 15701.72 | E26: 3.66 | F26: 57468.2952 | H26: ='6. Historical Wholesale'!H26 -> 14989.29 | I26: 0.87 | J26: 13040.6823 | L26: ='6. Historical Wholesale'!L26 -> 14989.29 | M26: 0 | N26: 0 | P26: 13040.6823
B27: April | D27: ='6. Historical Wholesale'!D27 -> 10861.55 | E27: 3.66 | F27: 39753.273 | H27: ='6. Historical Wholesale'!H27 -> 12763.7 | I27: 0.87 | J27: 11104.419 | L27: ='6. Historical Wholesale'!L27 -> 12763.7 | M27: 0 | N27: 0 | P27: 11104.419
B28: May | D28: ='6. Historical Wholesale'!D28 -> 17205.65 | E28: 3.66 | F28: 62972.679 | H28: ='6. Historical Wholesale'!H28 -> 16299.54 | I28: 0.87 | J28: 14180.5998 | L28: ='6. Historical Wholesale'!L28 -> 16299.54 | M28: 0 | N28: 0 | P28: 14180.5998
B29: June | D29: ='6. Historical Wholesale'!D29 -> 20276.06 | E29: 3.66 | F29: 74210.3796 | H29: ='6. Historical Wholesale'!H29 -> 19333.22 | I29: 0.87 | J29: 16819.9014 | L29: ='6. Historical Wholesale'!L29 -> 19333.22 | M29: 0 | N29: 0 | P29: 16819.9014
B30: July | D30: ='6. Historical Wholesale'!D30 -> 22517.07 | E30: 3.66 | F30: 82412.4762 | H30: ='6. Historical Wholesale'!H30 -> 22517.07 | I30: 0.87 | J30: 19589.8509 | L30: ='6. Historical Wholesale'!L30 -> 22517.07 | M30: 0 | N30: 0 | P30: 19589.8509
B31: August | D31: ='6. Historical Wholesale'!D31 -> 22302.75 | E31: 3.66 | F31: 81628.065 | H31: ='6. Historical Wholesale'!H31 -> 21600.31 | I31: 0.87 | J31: 18792.2697 | L31: ='6. Historical Wholesale'!L31 -> 21600.31 | M31: 0 | N31: 0 | P31: 18792.2697
B32: September | D32: ='6. Historical Wholesale'!D32 -> 22156.2 | E32: 3.66 | F32: 81091.692 | H32: ='6. Historical Wholesale'!H32 -> 21377.09 | I32: 0.87 | J32: 18598.0683 | L32: ='6. Historical Wholesale'!L32 -> 21377.09 | M32: 0 | N32: 0 | P32: 18598.0683
B33: October | D33: ='6. Historical Wholesale'!D33 -> 12738.66 | E33: 3.66 | F33: 46623.4956 | H33: ='6. Historical Wholesale'!H33 -> 12411.23 | I33: 0.87 | J33: 10797.7701 | L33: ='6. Historical Wholesale'!L33 -> 12411.23 | M33: 0 | N33: 0 | P33: 10797.7701
B34: November | D34: ='6. Historical Wholesale'!D34 -> 12369.54 | E34: 3.66 | F34: 45272.5164 | H34: ='6. Historical Wholesale'!H34 -> 14552.4 | I34: 0.87 | J34: 12660.588 | L34: ='6. Historical Wholesale'!L34 -> 14552.4 | M34: 0 | N34: 0 | P34: 12660.588
B35: December | D35: ='6. Historical Wholesale'!D35 -> 14617.59 | E35: 3.66 | F35: 53500.3794 | H35: ='6. Historical Wholesale'!H35 -> 14651.79 | I35: 0.87 | J35: 12747.0573 | L35: ='6. Historical Wholesale'!L35 -> 14651.79 | M35: 0 | N35: 0 | P35: 12747.0573
B37: Total | D37: =SUM(D24:D35) -> 203334.33 | E37: =IF(D37<>0,F37/D37,0) -> 3.66 | F37: =SUM(F24:F35) -> 744203.6478 | H37: =SUM(H24:H35) -> 203083.18 | I37: =IF(H37<>0,J37/H37,0) -> 0.87 | J37: =SUM(J24:J35) -> 176682.3666 | L37: =SUM(L24:L35) -> 203083.18 | M37: =IF(L37<>0,N37/L37,0) -> 0 | N37: =SUM(N24:N35) -> 0 | P37: =SUM(P24:P35) -> 176682.3666
B39: Hydro One | D39: Network | H39: Line Connection | L39: Transformation Connection | P39: Total Line
B41: Month | D41: Units Billed | E41: Rate | F41: Amount | H41: Units Billed | I41: Rate | J41: Amount | L41: Units Billed | M41: Rate | N41: Amount | P41: Amount
B43: January | D43: ='6. Historical Wholesale'!D43 -> 14445.1 | E43: ='5. UTRs and Sub-Transmission'!I35+'5. UTRs and Sub-Transmission'!I79 -> 3.3396 | F43: =D43*E43 -> 48240.85596 | H43: ='6. Historical Wholesale'!H43 -> 14445.1 | I43: ='5. UTRs and Sub-Transmission'!I37+'5. UTRs and Sub-Transmission'!I81 -> 0.7791 | J43: =H43*I43 -> 11254.17741 | L43: ='6. Historical Wholesale'!L43 -> 14445.1 | M43: ='5. UTRs and Sub-Transmission'!I39 -> 1.7713 | N43: =L43*M43 -> 25586.60563 | P43: =J43+N43 -> 36840.78304
B44: February | D44: ='6. Historical Wholesale'!D44 -> 19331.46 | E44: =E43 -> 3.3396 | F44: 64559.34382 | H44: ='6. Historical Wholesale'!H44 -> 19331.46 | I44: =I43 -> 0.7791 | J44: 15061.14049 | L44: ='6. Historical Wholesale'!L44 -> 19331.46 | M44: =M43 -> 1.7713 | N44: 34241.8151 | P44: 49302.95558
B45: March | D45: ='6. Historical Wholesale'!D45 -> 13222.33 | E45: 3.3396 | F45: 44157.29327 | H45: ='6. Historical Wholesale'!H45 -> 13222.33 | I45: 0.7791 | J45: 10301.5173 | L45: ='6. Historical Wholesale'!L45 -> 13222.33 | M45: 1.7713 | N45: 23420.71313 | P45: 33722.23043
B46: April | D46: ='6. Historical Wholesale'!D46 -> 12504.67 | E46: 3.3396 | F46: 41760.59593 | H46: ='6. Historical Wholesale'!H46 -> 12612.22 | I46: 0.7791 | J46: 9826.180602 | L46: ='6. Historical Wholesale'!L46 -> 12612.22 | M46: 1.7713 | N46: 22340.02529 | P46: 32166.20589
B47: May | D47: ='6. Historical Wholesale'!D47 -> 15481.51 | E47: 3.3396 | F47: 51702.0508 | H47: ='6. Historical Wholesale'!H47 -> 15481.51 | I47: 0.7791 | J47: 12061.64444 | L47: ='6. Historical Wholesale'!L47 -> 15481.51 | M47: 1.7713 | N47: 27422.39866 | P47: 39484.0431
B48: June | D48: ='6. Historical Wholesale'!D48 -> 19810.25 | E48: 3.3396 | F48: 66158.3109 | H48: ='6. Historical Wholesale'!H48 -> 19810.25 | I48: 0.7791 | J48: 15434.16577 | L48: ='6. Historical Wholesale'!L48 -> 19810.25 | M48: 1.7713 | N48: 35089.89582 | P48: 50524.0616
B49: July | D49: ='6. Historical Wholesale'!D49 -> 21723.08 | E49: 3.3396 | F49: 72546.39797 | H49: ='6. Historical Wholesale'!H49 -> 21723.08 | I49: 0.7791 | J49: 16924.45163 | L49: ='6. Historical Wholesale'!L49 -> 21723.08 | M49: 1.7713 | N49: 38478.0916 | P49: 55402.54323
B50: August | D50: ='6. Historical Wholesale'!D50 -> 19681.57 | E50: 3.3396 | F50: 65728.57117 | H50: ='6. Historical Wholesale'!H50 -> 19681.57 | I50: 0.7791 | J50: 15333.91119 | L50: ='6. Historical Wholesale'!L50 -> 19681.57 | M50: 1.7713 | N50: 34861.96494 | P50: 50195.87613
B51: September | D51: ='6. Historical Wholesale'!D51 -> 18767.5 | E51: 3.3396 | F51: 62675.943 | H51: ='6. Historical Wholesale'!H51 -> 19134 | I51: 0.7791 | J51: 14907.2994 | L51: ='6. Historical Wholesale'!L51 -> 19134 | M51: 1.7713 | N51: 33892.0542 | P51: 48799.3536
B52: October | D52: ='6. Historical Wholesale'!D52 -> 11578.27 | E52: 3.3396 | F52: 38666.79049 | H52: ='6. Historical Wholesale'!H52 -> 11724.99 | I52: 0.7791 | J52: 9134.939709 | L52: ='6. Historical Wholesale'!L52 -> 11724.99 | M52: 1.7713 | N52: 20768.47479 | P52: 29903.4145
B53: November | D53: ='6. Historical Wholesale'!D53 -> 12702.89 | E53: 3.3396 | F53: 42422.57144 | H53: ='6. Historical Wholesale'!H53 -> 12702.89 | I53: 0.7791 | J53: 9896.821599 | L53: ='6. Historical Wholesale'!L53 -> 12702.89 | M53: 1.7713 | N53: 22500.62906 | P53: 32397.45066
B54: December | D54: ='6. Historical Wholesale'!D54 -> 12859.29 | E54: 3.3396 | F54: 42944.88488 | H54: ='6. Historical Wholesale'!H54 -> 12999.38 | I54: 0.7791 | J54: 10127.81696 | L54: ='6. Historical Wholesale'!L54 -> 12999.38 | M54: 1.7713 | N54: 23025.80179 | P54: 33153.61875
B56: Total | D56: =SUM(D43:D54) -> 192107.92 | E56: =IF(D56<>0,F56/D56,0) -> 3.3396 | F56: =SUM(F43:F54) -> 641563.6096 | H56: =SUM(H43:H54) -> 192868.78 | I56: =IF(H56<>0,J56/H56,0) -> 0.7791 | J56: =SUM(J43:J54) -> 150264.0665 | L56: =SUM(L43:L54) -> 192868.78 | M56: =IF(L56<>0,N56/L56,0) -> 1.7713 | N56: =SUM(N43:N54) -> 341628.47 | P56: =SUM(P43:P54) -> 491892.5365
B58: ='6. Historical Wholesale'!B58 -> Add Extra Host Here (I) | D58: Network | H58: Line Connection | L58: Transformation Connection | P58: Total Line
B60: Month | D60: Units Billed | E60: Rate | F60: Amount | H60: Units Billed | I60: Rate | J60: Amount | L60: Units Billed | M60: Rate | N60: Amount | P60: Amount
B62: January | D62: ='6. Historical Wholesale'!D62 -> 0 | E62: ='5. UTRs and Sub-Transmission'!I50 -> 0 | F62: =D62*E62 -> 0 | H62: ='6. Historical Wholesale'!H62 -> 0 | I62: ='5. UTRs and Sub-Transmission'!I52 -> 0 | J62: =H62*I62 -> 0 | L62: ='6. Historical Wholesale'!L62 -> 0 | M62: ='5. UTRs and Sub-Transmission'!I54 -> 0 | N62: =L62*M62 -> 0 | P62: =J62+N62 -> 0
B63: February | D63: ='6. Historical Wholesale'!D63 -> 0 | E63: =E62 -> 0 | F63: 0 | H63: ='6. Historical Wholesale'!H63 -> 0 | I63: =I62 -> 0 | J63: 0 | L63: ='6. Historical Wholesale'!L63 -> 0 | M63: =M62 -> 0 | N63: 0 | P63: 0
B64: March | D64: ='6. Historical Wholesale'!D64 -> 0 | E64: 0 | F64: 0 | H64: ='6. Historical Wholesale'!H64 -> 0 | I64: 0 | J64: 0 | L64: ='6. Historical Wholesale'!L64 -> 0 | M64: 0 | N64: 0 | P64: 0
B65: April | D65: ='6. Historical Wholesale'!D65 -> 0 | E65: 0 | F65: 0 | H65: ='6. Historical Wholesale'!H65 -> 0 | I65: 0 | J65: 0 | L65: ='6. Historical Wholesale'!L65 -> 0 | M65: 0 | N65: 0 | P65: 0
B66: May | D66: ='6. Historical Wholesale'!D66 -> 0 | E66: 0 | F66: 0 | H66: ='6. Historical Wholesale'!H66 -> 0 | I66: 0 | J66: 0 | L66: ='6. Historical Wholesale'!L66 -> 0 | M66: 0 | N66: 0 | P66: 0
B67: June | D67: ='6. Historical Wholesale'!D67 -> 0 | E67: 0 | F67: 0 | H67: ='6. Historical Wholesale'!H67 -> 0 | I67: 0 | J67: 0 | L67: ='6. Historical Wholesale'!L67 -> 0 | M67: 0 | N67: 0 | P67: 0
B68: July | D68: ='6. Historical Wholesale'!D68 -> 0 | E68: 0 | F68: 0 | H68: ='6. Historical Wholesale'!H68 -> 0 | I68: 0 | J68: 0 | L68: ='6. Historical Wholesale'!L68 -> 0 | M68: 0 | N68: 0 | P68: 0
B69: August | D69: ='6. Historical Wholesale'!D69 -> 0 | E69: 0 | F69: 0 | H69: ='6. Historical Wholesale'!H69 -> 0 | I69: 0 | J69: 0 | L69: ='6. Historical Wholesale'!L69 -> 0 | M69: 0 | N69: 0 | P69: 0
B70: September | D70: ='6. Historical Wholesale'!D70 -> 0 | E70: 0 | F70: 0 | H70: ='6. Historical Wholesale'!H70 -> 0 | I70: 0 | J70: 0 | L70: ='6. Historical Wholesale'!L70 -> 0 | M70: 0 | N70: 0 | P70: 0
B71: October | D71: ='6. Historical Wholesale'!D71 -> 0 | E71: 0 | F71: 0 | H71: ='6. Historical Wholesale'!H71 -> 0 | I71: 0 | J71: 0 | L71: ='6. Historical Wholesale'!L71 -> 0 | M71: 0 | N71: 0 | P71: 0
B72: November | D72: ='6. Historical Wholesale'!D72 -> 0 | E72: 0 | F72: 0 | H72: ='6. Historical Wholesale'!H72 -> 0 | I72: 0 | J72: 0 | L72: ='6. Historical Wholesale'!L72 -> 0 | M72: 0 | N72: 0 | P72: 0
B73: December | D73: ='6. Historical Wholesale'!D73 -> 0 | E73: 0 | F73: 0 | H73: ='6. Historical Wholesale'!H73 -> 0 | I73: 0 | J73: 0 | L73: ='6. Historical Wholesale'!L73 -> 0 | M73: 0 | N73: 0 | P73: 0
B75: Total | D75: =SUM(D62:D73) -> 0 | E75: =IF(D75<>0,F75/D75,0) -> 0 | F75: =SUM(F62:F73) -> 0 | H75: =SUM(H62:H73) -> 0 | I75: =IF(H75<>0,J75/H75,0) -> 0 | J75: =SUM(J62:J73) -> 0 | L75: =SUM(L62:L73) -> 0 | M75: =IF(L75<>0,N75/L75,0) -> 0 | N75: =SUM(N62:N73) -> 0 | P75: =SUM(P62:P73) -> 0
B77: ='6. Historical Wholesale'!B77 -> Add Extra Host Here (II) | D77: Network | H77: Line Connection | L77: Transformation Connection | P77: Total Line
B79: Month | D79: Units Billed | E79: Rate | F79: Amount | H79: Units Billed | I79: Rate | J79: Amount | L79: Units Billed | M79: Rate | N79: Amount | P79: Amount
B81: January | D81: ='6. Historical Wholesale'!D81 -> 0 | E81: ='5. UTRs and Sub-Transmission'!I65 -> 0 | F81: =D81*E81 -> 0 | H81: ='6. Historical Wholesale'!H81 -> 0 | I81: ='5. UTRs and Sub-Transmission'!I67 -> 0 | J81: =H81*I81 -> 0 | L81: ='6. Historical Wholesale'!L81 -> 0 | M81: ='5. UTRs and Sub-Transmission'!I69 -> 0 | N81: =L81*M81 -> 0 | P81: =J81+N81 -> 0
B82: February | D82: ='6. Historical Wholesale'!D82 -> 0 | E82: =E81 -> 0 | F82: 0 | H82: ='6. Historical Wholesale'!H82 -> 0 | I82: =I81 -> 0 | J82: 0 | L82: ='6. Historical Wholesale'!L82 -> 0 | M82: =M81 -> 0 | N82: 0 | P82: 0
B83: March | D83: ='6. Historical Wholesale'!D83 -> 0 | E83: 0 | F83: 0 | H83: ='6. Historical Wholesale'!H83 -> 0 | I83: 0 | J83: 0 | L83: ='6. Historical Wholesale'!L83 -> 0 | M83: 0 | N83: 0 | P83: 0
B84: April | D84: ='6. Historical Wholesale'!D84 -> 0 | E84: 0 | F84: 0 | H84: ='6. Historical Wholesale'!H84 -> 0 | I84: 0 | J84: 0 | L84: ='6. Historical Wholesale'!L84 -> 0 | M84: 0 | N84: 0 | P84: 0
B85: May | D85: ='6. Historical Wholesale'!D85 -> 0 | E85: 0 | F85: 0 | H85: ='6. Historical Wholesale'!H85 -> 0 | I85: 0 | J85: 0 | L85: ='6. Historical Wholesale'!L85 -> 0 | M85: 0 | N85: 0 | P85: 0
B86: June | D86: ='6. Historical Wholesale'!D86 -> 0 | E86: 0 | F86: 0 | H86: ='6. Historical Wholesale'!H86 -> 0 | I86: 0 | J86: 0 | L86: ='6. Historical Wholesale'!L86 -> 0 | M86: 0 | N86: 0 | P86: 0
B87: July | D87: ='6. Historical Wholesale'!D87 -> 0 | E87: 0 | F87: 0 | H87: ='6. Historical Wholesale'!H87 -> 0 | I87: 0 | J87: 0 | L87: ='6. Historical Wholesale'!L87 -> 0 | M87: 0 | N87: 0 | P87: 0
B88: August | D88: ='6. Historical Wholesale'!D88 -> 0 | E88: 0 | F88: 0 | H88: ='6. Historical Wholesale'!H88 -> 0 | I88: 0 | J88: 0 | L88: ='6. Historical Wholesale'!L88 -> 0 | M88: 0 | N88: 0 | P88: 0
B89: September | D89: ='6. Historical Wholesale'!D89 -> 0 | E89: 0 | F89: 0 | H89: ='6. Historical Wholesale'!H89 -> 0 | I89: 0 | J89: 0 | L89: ='6. Historical Wholesale'!L89 -> 0 | M89: 0 | N89: 0 | P89: 0
B90: October | D90: ='6. Historical Wholesale'!D90 -> 0 | E90: 0 | F90: 0 | H90: ='6. Historical Wholesale'!H90 -> 0 | I90: 0 | J90: 0 | L90: ='6. Historical Wholesale'!L90 -> 0 | M90: 0 | N90: 0 | P90: 0
B91: November | D91: ='6. Historical Wholesale'!D91 -> 0 | E91: 0 | F91: 0 | H91: ='6. Historical Wholesale'!H91 -> 0 | I91: 0 | J91: 0 | L91: ='6. Historical Wholesale'!L91 -> 0 | M91: 0 | N91: 0 | P91: 0
B92: December | D92: ='6. Historical Wholesale'!D92 -> 0 | E92: 0 | F92: 0 | H92: ='6. Historical Wholesale'!H92 -> 0 | I92: 0 | J92: 0 | L92: ='6. Historical Wholesale'!L92 -> 0 | M92: 0 | N92: 0 | P92: 0
B94: Total | D94: =SUM(D81:D92) -> 0 | E94: =IF(D94<>0,F94/D94,0) -> 0 | F94: =SUM(F81:F92) -> 0 | H94: =SUM(H81:H92) -> 0 | I94: =IF(H94<>0,J94/H94,0) -> 0 | J94: =SUM(J81:J92) -> 0 | L94: =SUM(L81:L92) -> 0 | M94: =IF(L94<>0,N94/L94,0) -> 0 | N94: =SUM(N81:N92) -> 0 | P94: =SUM(P81:P92) -> 0
B96: Total | D96: Network | H96: Line Connection | L96: Transformation Connection | P96: Total Line
B98: Month | D98: Units Billed | E98: Rate | F98: Amount | H98: Units Billed | I98: Rate | J98: Amount | L98: Units Billed | M98: Rate | N98: Amount | P98: Amount
B100: January | D100: =D24+D43+D62+D81 -> 31434.07 | E100: =IF(D100<>0,F100/D100,0) -> 3.512764531 | F100: =F24+F43+F62+F81 -> 110420.4862 | H100: =H24+H43+H62+H81 -> 31434.07 | I100: =IF(H100<>0,J100/H100,0) -> 0.8282281394 | J100: =J24+J43+J62+J81 -> 26034.58131 | L100: =L24+L43+L62+L81 -> 31434.07 | M100: =IF(L100<>0,N100/L100,0) -> 0.8139768611 | N100: =N24+N43+N62+N81 -> 25586.60563 | P100: =J100+N100 -> 51621.18694
B101: February | D101: =D25+D44+D63+D82 -> 34930.03 | E101: 3.482679803 | F101: 121650.11 | H101: =H25+H44+H63+H82 -> 34930.03 | I101: 0.8196928656 | J101: =J25+J44+J63+J82 -> 28631.89639 | L101: =L25+L44+L63+L82 -> 34930.03 | M101: 0.9802973286 | N101: =N25+N44+N63+N82 -> 34241.8151 | P101: 62873.71148
B102: March | D102: 28924.05 | E102: 3.513532457 | F102: 101625.5885 | H102: =H26+H45+H64+H83 -> 28211.62 | I102: 0.8273966402 | J102: =J26+J45+J64+J83 -> 23342.1996 | L102: =L26+L45+L64+L83 -> 28211.62 | M102: 0.830179661 | N102: =N26+N45+N64+N83 -> 23420.71313 | P102: 46762.91273
B103: April | D103: 23366.22 | E103: 3.488534685 | F103: 81513.86893 | H103: =H27+H46+H65+H84 -> 25375.92 | I103: 0.824821311 | J103: =J27+J46+J65+J84 -> 20930.5996 | L103: =L27+L46+L65+L84 -> 25375.92 | M103: 0.8803631666 | N103: =N27+N46+N65+N84 -> 22340.02529 | P103: 43270.62489
B104: May | D104: 32687.16 | E104: 3.508250022 | F104: 114674.7298 | H104: =H28+H47+H66+H85 -> 31781.05 | I104: 0.8257198627 | J104: =J28+J47+J66+J85 -> 26242.24424 | L104: =L28+L47+L66+L85 -> 31781.05 | M104: 0.8628537655 | N104: =N28+N47+N66+N85 -> 27422.39866 | P104: 53664.6429
B105: June | D105: 40086.31 | E105: 3.501661552 | F105: 140368.6905 | H105: =H29+H48+H67+H86 -> 39143.47 | I105: 0.8239961142 | J105: =J29+J48+J67+J86 -> 32254.06718 | L105: =L29+L48+L67+L86 -> 39143.47 | M105: 0.8964431571 | N105: =N29+N48+N67+N86 -> 35089.89582 | P105: 67343.963
B106: July | D106: 44240.15 | E106: 3.502675153 | F106: 154958.8742 | H106: =H30+H49+H68+H87 -> 44240.15 | I106: 0.8253657035 | J106: =J30+J49+J68+J87 -> 36514.30253 | L106: =L30+L49+L68+L87 -> 44240.15 | M106: 0.8697549987 | N106: =N30+N49+N68+N87 -> 38478.0916 | P106: 74992.39413
B107: August | D107: 41984.32 | E107: 3.509801663 | F107: 147356.6362 | H107: =H31+H50+H69+H88 -> 41281.88 | I107: 0.82666247 | J107: =J31+J50+J69+J88 -> 34126.18089 | L107: =L31+L50+L69+L88 -> 41281.88 | M107: 0.8444858844 | N107: =N31+N50+N69+N88 -> 34861.96494 | P107: 68988.14583
B108: September | D108: 40923.7 | E108: 3.513065412 | F108: 143767.635 | H108: =H32+H51+H70+H89 -> 40511.09 | I108: 0.8270665563 | J108: =J32+J51+J70+J89 -> 33505.3677 | L108: =L32+L51+L70+L89 -> 40511.09 | M108: 0.8366117574 | N108: =N32+N51+N70+N89 -> 33892.0542 | P108: 67397.4219
B109: October | D109: 24316.93 | E109: 3.507444652 | F109: 85290.28609 | H109: =H33+H52+H71+H90 -> 24136.22 | I109: 0.8258422325 | J109: =J33+J52+J71+J90 -> 19932.70981 | L109: =L33+L52+L71+L90 -> 24136.22 | M109: 0.8604692362 | N109: =N33+N52+N71+N90 -> 20768.47479 | P109: 40701.1846
B110: November | D110: 25072.43 | E110: 3.497670064 | F110: 87695.08784 | H110: =H34+H53+H72+H91 -> 27255.29 | I110: 0.8276341803 | J110: =J34+J53+J72+J91 -> 22557.4096 | L110: =L34+L53+L72+L91 -> 27255.29 | M110: 0.8255508951 | N110: =N34+N53+N72+N91 -> 22500.62906 | P110: 45058.03866
B111: December | D111: 27476.88 | E111: 3.510051515 | F111: 96445.26428 | H111: =H35+H54+H73+H92 -> 27651.17 | I111: 0.8272660527 | J111: =J35+J54+J73+J92 -> 22874.87426 | L111: =L35+L54+L73+L92 -> 27651.17 | M111: 0.8327243221 | N111: =N35+N54+N73+N92 -> 23025.80179 | P111: 45900.67605
B113: Total | D113: =SUM(D100:D111) -> 395442.25 | E113: =IF(D113<>0,F113/D113,0) -> 3.504347999 | F113: =SUM(F100:F111) -> 1385767.257 | H113: =SUM(H100:H111) -> 395951.96 | I113: =IF(H113<>0,J113/H113,0) -> 0.8257224768 | J113: =SUM(J100:J111) -> 326946.4331 | L113: =SUM(L100:L111) -> 395951.96 | M113: =IF(L113<>0,N113/L113,0) -> 0.8628028259 | N113: =SUM(N100:N111) -> 341628.47 | P113: =SUM(P100:P111) -> 668574.9031
N115: Low Voltage Switchgear Credit (if applicable) | P115: ='5. UTRs and Sub-Transmission'!I95 -> 0
N117: Total including deduction for Low Voltage Switchgear Credit | P117: =P113+P115 -> 668574.9031

Sheet 9. RTSR Rates to Forecast
A13: The purpose of this sheet is to re-align the current RTS Network Rates to recover current wholesale network costs.
A15: Rate Class | B15: Rate Description | C15: Unit | D15: Current RTSR-Network | E15: Loss Adjusted Billed kWh | F15: Billed kW | G15: Billed Amount | H15: Billed Amount % | I15: Current Wholesale Billing | J15: Adjusted RTSR Network
A17: Residential | B17: RTSR - Network | C17: kWh | D17: 0.0076 | E17: 98053478.1 | G17: =ROUND(D17*E17, 2) -> 745206.43 | H17: =G17/1863665.7 -> 0.3998605705 | I17: =H17*total_current_wholesale_network -> 569439.5196 | J17: =IF(ISERROR(I17/E17), 0, I17/E17) -> 0.005807438254
A18: General Service Less Than 50 kW | B18: RTSR - Network | C18: kWh | D18: 0.0071 | E18: 20236190.37 | G18: =ROUND(D18*E18, 2) -> 143676.95 | H18: =G18/1863665.7 -> 0.07709373521 | I18: =H18*total_current_wholesale_network -> 109788.8184 | J18: =IF(ISERROR(I18/E18), 0, I18/E18) -> 0.005425369912
A19: General Service 50 to 4,999 kW | B19: RTSR - Network | C19: kW | D19: 2.8217 | F19: 48415.71 | G19: =ROUND(D19*F19, 2) -> 136614.61 | H19: =G19/1863665.7 -> 0.07330424657 | I19: =H19*total_current_wholesale_network -> 104392.2258 | J19: =IF(ISERROR(I19/F19), 0, I19/F19) -> 2.156164306
A20: General Service 50 to 4,999 kW – Interval Metered | B20: RTSR - Network | C20: kW | D20: 2.8578 | F20: 129552.29 | G20: =ROUND(D20*F20, 2) -> 370234.53 | H20: =G20/1863665.7 -> 0.1986593035 | I20: =H20*total_current_wholesale_network -> 282909.7609 | J20: =IF(ISERROR(I20/F20), 0, I20/F20) -> 2.183749595
A21: Unmetered Scattered Load | B21: RTSR - Network | C21: kWh | D21: 0.0071 | E21: 384626.3556 | G21: =ROUND(D21*E21, 2) -> 2730.85 | H21: =G21/1863665.7 -> 0.00146531108 | I21: =H21*total_current_wholesale_network -> 2086.742478 | J21: =IF(ISERROR(I21/E21), 0, I21/E21) -> 0.005425375685
A22: Street Lighting | B22: RTSR - Network | C22: kW | D22: 2.1281 | F22: 1990 | G22: =ROUND(D22*F22, 2) -> 4234.92 | H22: =G22/1863665.7 -> 0.002272360327 | I22: =H22*total_current_wholesale_network -> 3236.057438 | J22: =IF(ISERROR(I22/F22), 0, I22/F22) -> 1.626159516
A23: Embedded Distributor | B23: RTSR - Network | C23: kW | D23: 3.78 | F23: 121949.05 | G23: =ROUND(D23*F23, 2) -> 460967.41 | H23: =G23/1863665.7 -> 0.2473444728 | I23: =H23*total_current_wholesale_network -> 352242.0767 | J23: =IF(ISERROR(I23/F23), 0, I23/F23) -> 2.888436415
A25: The purpose of this table is to re-align the current RTS Connection Rates to recover current wholesale connection costs.
A26: Rate Class | B26: Rate Description | C26: Unit | D26: Current RTSR-Connection | E26: Loss Adjusted Billed kWh | F26: Billed kW | G26: Billed Amount | H26: Billed Amount % | I26: Current Wholesale Billing | J26: Adjusted RTSR-Connection
A28: Residential | B28: RTSR - Connection | C28: kWh | D28: 0.0057 | E28: 98053478.1 | G28: =ROUND(D28*E28, 2) -> 558904.83 | H28: =G28/1142416.39 -> 0.4892304022 | I28: =H28*Total_Current_Wholesale_Lineplus -> 528510.7965 | J28: =IF(ISERROR(I28/E28), 0, I28/E28) -> 0.005390026002
A29: General Service Less Than 50 kW | B29: RTSR - Connection | C29: kWh | D29: 0.005 | E29: 20236190.37 | G29: =ROUND(D29*E29, 2) -> 101180.95 | H29: =G29/1142416.39 -> 0.08856748808 | I29: =H29*Total_Current_Wholesale_Lineplus -> 95678.58714 | J29: =IF(ISERROR(I29/E29), 0, I29/E29) -> 0.004728092857
A30: General Service 50 to 4,999 kW | B30: RTSR - Connection | C30: kW | D30: 2.0135 | F30: 48415.71 | G30: =ROUND(D30*F30, 2) -> 97485.03 | H30: =G30/1142416.39 -> 0.0853323104 | I30: =H30*Total_Current_Wholesale_Lineplus -> 92183.65648 | J30: =IF(ISERROR(I30/F30), 0, I30/F30) -> 1.904002988
A31: General Service 50 to 4,999 kW – Interval Metered | B31: RTSR - Connection | C31: kW | D31: 2.1223 | F31: 129552.29 | G31: =ROUND(D31*F31, 2) -> 274948.83 | H31: =G31/1142416.39 -> 0.2406730439 | I31: =H31*Total_Current_Wholesale_Lineplus -> 259996.7246 | J31: =IF(ISERROR(I31/F31), 0, I31/F31) -> 2.006886367
A32: Unmetered Scattered Load | B32: RTSR - Connection | C32: kWh | D32: 0.005 | E32: 384626.3556 | G32: =ROUND(D32*E32, 2) -> 1923.13 | H32: =G32/1142416.39 -> 0.001683387963 | I32: =H32*Total_Current_Wholesale_Lineplus -> 1818.547476 | J32: =IF(ISERROR(I32/E32), 0, I32/E32) -> 0.004728088572
A33: Street Lighting | B33: RTSR - Connection | C33: kW | D33: 1.5565 | F33: 1990 | G33: =ROUND(D33*F33, 2) -> 3097.44 | H33: =G33/1142416.39 -> 0.002711305639 | I33: =H33*Total_Current_Wholesale_Lineplus -> 2928.996841 | J33: =IF(ISERROR(I33/F33), 0, I33/F33) -> 1.471857709
A34: Embedded Distributor | B34: RTSR - Connection | C34: kW | D34: 0.86 | F34: 121949.05 | G34: =ROUND(D34*F34, 2) -> 104876.18 | H34: =G34/1142416.39 -> 0.09180206177 | I34: =H34*Total_Current_Wholesale_Lineplus -> 99172.86531 | J34: =IF(ISERROR(I34/F34), 0, I34/F34) -> 0.813231963
A36: The purpose of this table is to update the re-aligned RTS Network Rates to recover future wholesale network costs.
A37: Rate Class | B37: Rate Description | C37: Unit | D37: Adjusted RTSR-Network | E37: Loss Adjusted Billed kWh | F37: Billed kW | G37: Billed Amount | H37: Billed Amount % | I37: Current Wholesale Billing | J37: Proposed RTSR-Network
A39: Residential | B39: RTSR - Network | C39: kWh | D39: 0.005807438254 | E39: 98053478.1 | G39: =IF(ISERROR(D39*E39), 0, ROUND(D39*E39, 2)) -> 569439.52 | H39: =G39/1424095.21 -> 0.3998605683 | I39: =H39*forecast_wholesale_network -> 554113.6831 | J39: =IF(ISERROR(I39/E39), 0, I39/E39) -> 0.005651137459
A40: General Service Less Than 50 kW | B40: RTSR - Network | C40: kWh | D40: 0.005425369912 | E40: 20236190.37 | G40: =IF(ISERROR(D40*E40), 0, ROUND(D40*E40, 2)) -> 109788.82 | H40: =G40/1424095.21 -> 0.07709373589 | I40: =H40*forecast_wholesale_network -> 106833.9749 | J40: =IF(ISERROR(I40/E40), 0, I40/E40) -> 0.005279352141
A41: General Service 50 to 4,999 kW | B41: RTSR - Network | C41: kW | D41: 2.156164306 | F41: 48415.71 | G41: =ROUND(D41*F41, 2) -> 104392.23 | H41: =G41/1424095.21 -> 0.07330424909 | I41: =H41*forecast_wholesale_network -> 101582.6282 | J41: =IF(ISERROR(I41/F41), 0, I41/F41) -> 2.098133606
A42: General Service 50 to 4,999 kW – Interval Metered | B42: RTSR - Network | C42: kW | D42: 2.183749595 | F42: 129552.29 | G42: =ROUND(D42*F42, 2) -> 282909.76 | H42: =G42/1424095.21 -> 0.1986593017 | I42: =H42*forecast_wholesale_network -> 275295.5557 | J42: =IF(ISERROR(I42/F42), 0, I42/F42) -> 2.124976376
A43: Unmetered Scattered Load | B43: RTSR - Network | C43: kWh | D43: 0.005425375685 | E43: 384626.3556 | G43: =IF(ISERROR(D43*E43), 0, ROUND(D43*E43, 2)) -> 2086.74 | H43: =G43/1424095.21 -> 0.001465309331 | I43: =H43*forecast_wholesale_network -> 2030.577693 | J43: =IF(ISERROR(I43/E43), 0, I43/E43) -> 0.005279351412
A44: Street Lighting | B44: RTSR - Network | C44: kW | D44: 1.626159516 | F44: 1990 | G44: =ROUND(D44*F44, 2) -> 3236.06 | H44: =G44/1424095.21 -> 0.002272362113 | I44: =H44*forecast_wholesale_network -> 3148.965013 | J44: =IF(ISERROR(I44/F44), 0, I44/F44) -> 1.582394479
A45: Embedded Distributor | B45: RTSR - Network | C45: kW | D45: 2.888436415 | F45: 121949.05 | G45: =ROUND(D45*F45, 2) -> 352242.08 | H45: =G45/1424095.21 -> 0.2473444735 | I45: =H45*forecast_wholesale_network -> 342761.8727 | J45: =IF(ISERROR(I45/F45), 0, I45/F45) -> 2.810697359
A47: The purpose of this table is to update the re-aligned RTS Connection Rates to recover future wholesale connection costs.
A48: Rate Class | B48: Rate Description | C48: Unit | D48: Adjusted RTSR-Connection | E48: Loss Adjusted Billed kWh | F48: Billed kW | G48: Billed Amount | H48: Billed Amount % | I48: Current Wholesale Billing | J48: Proposed RTSR-Connection
A50: Residential | B50: RTSR - Connection | C50: kWh | D50: 0.005390026002 | E50: 98053478.1 | G50: =ROUND(D50*E50, 2) -> 528510.8 | H50: =G50/1080290.19 -> 0.4892303984 | I50: =H50*forecast_wholesale_lineplus -> 327087.1662 | J50: =IF(ISERROR(I50/E50), 0, I50/E50) -> 0.003335803814
A51: General Service Less Than 50 kW | B51: RTSR - Connection | C51: kWh | D51: 0.004728092857 | E51: 20236190.37 | G51: =ROUND(D51*E51, 2) -> 95678.59 | H51: =G51/1080290.19 -> 0.08856748944 | I51: =H51*forecast_wholesale_lineplus -> 59214.00067 | J51: =IF(ISERROR(I51/E51), 0, I51/E51) -> 0.002926143686
A52: General Service 50 to 4,999 kW | B52: RTSR - Connection | C52: kW | D52: 1.904002988 | F52: 48415.71 | G52: =ROUND(D52*F52, 2) -> 92183.66 | H52: =G52/1080290.19 -> 0.08533231242 | I52: =H52*forecast_wholesale_lineplus -> 57051.04251 | J52: =IF(ISERROR(I52/F52), 0, I52/F52) -> 1.178358068
A53: General Service 50 to 4,999 kW – Interval Metered | B53: RTSR - Connection | C53: kW | D53: 2.006886367 | F53: 129552.29 | G53: =ROUND(D53*F53, 2) -> 259996.72 | H53: =G53/1080290.19 -> 0.2406730362 | I53: =H53*forecast_wholesale_lineplus -> 160907.9519 | J53: =IF(ISERROR(I53/F53), 0, I53/F53) -> 1.242030935
A54: Unmetered Scattered Load | B54: RTSR - Connection | C54: kWh | D54: 0.004728088572 | E54: 384626.3556 | G54: =ROUND(D54*E54, 2) -> 1818.55 | H54: =G54/1080290.19 -> 0.001683390275 | I54: =H54*forecast_wholesale_lineplus -> 1125.47249 | J54: =IF(ISERROR(I54/E54), 0, I54/E54) -> 0.002926145007
A55: Street Lighting | B55: RTSR - Connection | C55: kW | D55: 1.471857709 | F55: 1990 | G55: =ROUND(D55*F55, 2) -> 2929 | H55: =G55/1080290.19 -> 0.002711308523 | I55: =H55*forecast_wholesale_lineplus -> 1812.712833 | J55: =IF(ISERROR(I55/F55), 0, I55/F55) -> 0.9109109716
A56: Embedded Distributor | B56: RTSR - Connection | C56: kW | D56: 0.813231963 | F56: 121949.05 | G56: =ROUND(D56*F56, 2) -> 99172.87 | H56: =G56/1080290.19 -> 0.09180206478 | I56: =H56*forecast_wholesale_lineplus -> 61376.55656 | J56: =IF(ISERROR(I56/F56), 0, I56/F56) -> 0.5032967175

Sheet hidden1 (hidden)
A1: =IF('3. Rate Classes'!L17=1, '3. Rate Classes'!C17, "") -> Residential | B1: 1
A2: =IF('3. Rate Classes'!L18=1, '3. Rate Classes'!C18, "") -> General Service Less Than 50 kW | B2: 2
A3: =IF('3. Rate Classes'!L19=1, '3. Rate Classes'!C19, "") -> General Service 50 to 4,999 kW | B3: 3
A4: =IF('3. Rate Classes'!L20=1, '3. Rate Classes'!C20, "") -> General Service 50 to 4,999 kW – Interval Metered | B4: 4
A5: =IF('3. Rate Classes'!L21=1, '3. Rate Classes'!C21, "") -> Unmetered Scattered Load | B5: 5
A6: =IF('3. Rate Classes'!L22=1, '3. Rate Classes'!C22, "") -> Street Lighting | B6: 6
A7: =IF('3. Rate Classes'!L23=1, '3. Rate Classes'!C23, "") -> Embedded Distributor | B7: 7
A8: =IF('3. Rate Classes'!L24=1, '3. Rate Classes'!C24, "") ->  | B8: 8
A9: =IF('3. Rate Classes'!L25=1, '3. Rate Classes'!C25, "") ->  | B9: 9
A10: =IF('3. Rate Classes'!L26=1, '3. Rate Classes'!C26, "") ->  | B10: 10
A11: =IF('3. Rate Classes'!L27=1, '3. Rate Classes'!C27, "") ->  | B11: 11
A12: =IF('3. Rate Classes'!L28=1, '3. Rate Classes'!C28, "") ->  | B12: 12
A13: =IF('3. Rate Classes'!L29=1, '3. Rate Classes'!C29, "") ->  | B13: 13
A14: =IF('3. Rate Classes'!L30=1, '3. Rate Classes'!C30, "") ->  | B14: 14
A15: =IF('3. Rate Classes'!L31=1, '3. Rate Classes'!C31, "") ->  | B15: 15
A16: =IF('3. Rate Classes'!L32=1, '3. Rate Classes'!C32, "") ->  | B16: 16
A17: =IF('3. Rate Classes'!L33=1, '3. Rate Classes'!C33, "") ->  | B17: 17
A18: =IF('3. Rate Classes'!L34=1, '3. Rate Classes'!C34, "") ->  | B18: 18
A19: =IF('3. Rate Classes'!L35=1, '3. Rate Classes'!C35, "") ->  | B19: 19
A20: =IF('3. Rate Classes'!L36=1, '3. Rate Classes'!C36, "") ->  | B20: 20
A21: =IF('3. Rate Classes'!L37=1, '3. Rate Classes'!C37, "") ->  | B21: 21
A22: =IF('3. Rate Classes'!L38=1, '3. Rate Classes'!C38, "") ->  | B22: 22
